{"text_format":"1","workbook":"xlsx","n_sheets":3,"sheets":["Forside","Materialer","Simpel Udskrift"],"not_rendered":{"charts":5,"images":36,"macros":1,"external_links":0,"defined_names":6,"comments":1,"pivot_tables":0},"unopened":[],"bounds":{"document_bytes":16777216,"sheet_cells":100000,"rows_first":2000,"rows_last":500,"rows_between":2000,"halvings":0,"cell_chars":16384,"cell_head_chars":4096},"cells_cut":0,"cells_raw":0,"read":"whole","date_system":"1900"}

{"sheet":"Forside","index":0,"n_rows":120,"n_cols":191,"rows_kept":120,"cut":false,"hidden":false,"merged":[[23,1,24,4],[117,61,119,61],[109,61,111,61],[112,61,116,61],[78,80,78,81],[20,114,20,115],[36,102,36,103],[26,102,26,103],[130,160,130,162],[38,5,38,6],[44,52,45,52],[75,76,75,82],[80,70,80,72],[72,70,72,72],[71,70,71,72],[130,164,130,166],[95,59,95,61],[130,176,130,178],[18,80,20,81],[33,80,33,81],[21,80,21,81],[22,80,22,81],[23,80,23,81],[24,80,24,81],[25,80,25,81],[31,80,31,81],[32,80,32,81],[38,59,41,59],[38,66,41,66],[43,70,43,71],[43,63,43,64],[131,160,131,162],[131,164,131,166],[131,168,131,170],[131,172,131,174],[131,176,131,178],[33,100,34,103],[31,102,31,103],[38,168,38,169],[38,170,38,171],[38,172,38,173],[38,174,38,175],[38,176,38,177],[45,168,45,169],[45,172,45,173],[45,170,45,171],[45,176,45,177],[38,178,38,179],[45,178,45,179],[52,176,52,177],[52,172,52,173],[52,170,52,171],[59,172,59,173],[130,168,130,170],[130,172,130,174],[6,117,6,119],[5,117,5,119],[5,121,5,123],[6,121,6,123],[5,125,5,127],[6,125,6,127],[5,129,5,131],[6,129,6,131],[5,133,5,135],[6,133,6,135],[16,1,16,2],[15,3,15,4],[16,3,16,4],[17,1,17,2],[17,3,17,4],[36,68,36,71],[36,61,36,64],[11,70,11,71],[11,63,11,64],[33,59,34,64],[14,1,14,2],[14,3,14,4],[21,3,21,4],[26,3,26,4],[31,3,31,4],[36,3,36,4],[33,66,34,71],[13,3,13,4],[11,7,11,13],[33,1,34,4],[28,1,29,4],[18,1,19,4],[11,14,12,15],[13,1,13,2],[4,68,4,71],[4,61,4,64],[1,59,2,64],[5,138,5,143],[28,100,29,103],[23,100,24,103],[7,4,7,5],[7,12,7,13],[5,11,6,13],[1,79,1,82],[2,79,2,82],[2,75,2,78],[1,75,1,78],[1,74,3,74],[1,73,3,73],[1,52,1,57],[6,59,9,59],[6,66,9,66],[1,66,2,71],[2,52,3,52],[10,12,10,13],[5,18,5,19],[2,11,4,21],[11,1,12,4],[15,1,15,2],[1,2,1,10],[2,2,2,7],[3,2,3,7],[4,2,4,7],[9,7,9,8],[10,7,10,8],[10,9,10,10],[8,7,8,8],[9,1,9,2],[8,1,8,2],[7,1,7,2],[8,4,8,5],[9,4,9,5],[10,4,10,5],[10,1,10,2],[5,1,6,6],[5,7,6,10],[7,7,7,10],[8,9,8,10],[9,9,9,10],[2,9,2,10],[3,9,3,10],[4,9,4,10],[10,24,12,24],[5,14,6,17],[8,16,8,17],[54,52,55,52],[54,56,55,56],[54,57,55,57],[54,55,55,55],[40,79,40,82],[26,80,26,81],[27,80,27,81],[48,77,48,82],[52,77,52,78],[52,79,52,80],[28,80,28,81],[54,77,54,78],[54,79,54,80],[50,77,50,78],[50,79,50,80],[51,77,51,78],[51,79,51,80],[53,77,53,78],[53,79,53,80],[7,189,12,189],[7,190,12,190],[12,182,12,183],[7,147,7,180],[12,185,12,186],[7,187,12,187],[7,188,12,188],[30,73,30,76],[18,75,18,78],[19,75,19,78],[13,114,13,115],[18,73,20,73],[18,74,20,74]]}
[]
[null,"Bruger:","Betonelement foreningen",null,null,null,null,null,null,null,null,null,null,"Version 0.927 - 11-12-2014",null,null,null,null,null,null,null,"Betonelement-Foreningen December 2014",null,null,null,null,null,null,null,null,null,null,null,null,null,null,null,null,null,null,null,null,null,null,null,null,null,null,null,null,null,null,"U-værdi for en betonsandwichelementvæg",null,null,null,null,null,null,"Ribbe omkring element",null,null,null,null,null,null,"Ribbe omkring dør",null,null,null,null,null,null,"Trådbinderetype","Diameter mm","8 bindere pr. m²",null,null,null,"4 bindere pr. m²",null,null,null,null,"Element",null,null,null,"Døre",null,null,null,"Vinduer",null,null,null,"Forstærkninger",null,null,"Reseveret til celler fra \"data til vinduer, døre og forstærkninger"]
[null,"Sagsnavn:","U-Værdi program",null,null,null,null,null,"Sag nr.:","017681",null,{"$f":"BB72&BB73&BB74&BB75&BB76&BB77&BB78&BB79&BB80&BB81&BB82&BB83&BB84&BB85&BB86&BB87&BB88&BB89&BB90&BB91&BB92","v":""},null,null,null,null,null,null,null,null,null,null,null,null,null,null,null,null,null,null,null,null,null,null,null,null,null,null,null,null,null,null,null,null,null,null,null,null,null,null,null,null,"Materiale","d","λ","R","A","U'",null,null,null,null,null,null,null,null,null,null,null,null,null,null,null,null,null,"Isoleringstykkelse [m]",null,null,null,"Isoleringstykkelse [m]",null,null,null,null,null,"x","y",null,null,"x","y",null,null,"x","y"]
[null,"Bygningsdel:","Element",null,null,null,null,null,"Dato:","01-02-2013",null,null,null,null,null,null,null,null,null,null,null,null,null,null,null,null,null,null,null,null,null,null,null,null,null,null,null,null,null,null,null,null,null,null,null,null,null,null,null,null,null,null,null,"m","W/mK","m²K/W","m²","W/m²K",null,null,null,null,null,null,null,null,null,null,null,null,null,null,null,null,null,0.1,0.125,0.15,0.2,0.1,0.125,0.15,0.2,null,"Venstre Ribbe",0,0,null,"Dør1",{"$f":"M14","v":0.5},{"$f":"CK7","v":0},null,"Vindue1",{"$f":"M17","v":5.7},{"$f":"N17+CO7","v":0.5},null,"Forstærkning 1",{"$f":"M22","v":4.4000000000000004},{"$f":"N22+CS7","v":0.5},null,null,null,null,null,null,null,null,null,null,null,null,null,null,null,null,"Dropdown til materialetyper"]
[null,"Emne:","Excel ark til beregning af uværdier for betonsandwitchelementer",null,null,null,null,null,"Int.:","MKTA / MRNI / MVVE",null,null,null,null,null,null,null,null,null,null,null,null,null,null,null,null,null,null,null,null,null,null,null,null,null,null,null,null,null,null,null,null,null,null,null,null,null,null,null,null,null,null,{"$f":"B12","v":"       Konstruktion af væg"},null,null,null,null,null,null,null,null,"Ribbeisolering",null,null,null,null,null,null,"Ribbeisolering",null,null,null,null,"Plast",null,0,0,0,0,0,0,0,0,null,null,0,{"$f":"D9","v":4},null,null,{"$f":"CL4","v":0.5},{"$f":"CM4+J14","v":2},null,null,{"$f":"CP4","v":5.7},{"$f":"CQ4+J17","v":1.5},null,null,{"$f":"CT4","v":4.4000000000000004},{"$f":"CU4+J22","v":1},null,null,null,null,null,null,null,null,null,null,null,null,null,null,null,null,"Bagstøbning"]
[null,"Element data",null,null,null,null,null,"Korrektion for forbindelsesbøjler \nmed 1 ben",null,null,null,"Korrektion for ophængsbøjler",null,null,"Elementets orientering (vandret, op, ned)",null,null,null,"Snitlinie",null,"x=",1,null,null,null,null,null,null,null,null,null,null,null,null,null,null,null,null,null,null,null,null,null,null,null,null,null,null,null,null,null,null,"Indvendig overgangsisolans",null,null,{"$f":"IF(Q9=\"Vandret\",0.13,IF(Q9=\"Opad\",0.1,IF(Q9=\"Nedad\",0.17,\"FEJL\")))","v":0.13},null,null,null,null,null,2.5000000000000001E-2,0.05,7.4999999999999997E-2,0.1,null,null,null,2.5000000000000001E-2,0.05,7.4999999999999997E-2,0.1,null,"Rustfast stål",3,4.0000000000000001E-3,4.0000000000000001E-3,3.0000000000000001E-3,3.0000000000000001E-3,2E-3,2E-3,2E-3,1E-3,null,null,{"$f":"G8","v":0.2},{"$f":"CI5","v":4},null,"Tillæg til dør1",{"$f":"CL5+K14","v":1.5},{"$f":"CM5","v":2},null,"Tillæg til dør1",{"$f":"CP5+K17","v":6.7},{"$f":"CQ5","v":1.5},null,"Tillæg til dør1",{"$f":"CT5+K22","v":4.9000000000000004},{"$f":"CU5","v":1},null,null,null,null,null,null,null,null,null,null,null,null,null,null,null,null,"Isolering",null,"1. materiale",null,null,null,"2. materiale",null,null,null,"3. materiale",null,null,null,"4. materiale",null,null,null,"5. materiale",null,null,null,null,"Tabeller fra \"Materiale side\""]
[null,null,null,null,null,null,null,null,null,null,null,null,null,null,null,null,null,null,null,null,null,null,null,null,null,null,null,null,null,null,null,null,null,null,null,null,null,null,null,null,null,null,null,null,null,null,null,null,null,null,null,null,{"$f":"DL22","v":"Forstøbning"},{"$f":"F14","v":0.1},"2,54",{"$f":"IF(BB7=0, 0, IF(BC7=0, 0, BB7/BC7))","v":3.937007874015748E-2},null,null,null,"Væg-isolering",0.1,1.7999999999999999E-2,7.0000000000000001E-3,2E-3,0,null,"Væg-isolering",0.1,1.7999999999999999E-2,7.0000000000000001E-3,2E-3,0,null,"Rustfast stål",4,8.0000000000000002E-3,7.0000000000000001E-3,6.0000000000000001E-3,5.0000000000000001E-3,4.0000000000000001E-3,3.0000000000000001E-3,3.0000000000000001E-3,2E-3,null,null,{"$f":"CH6","v":0.2},{"$f":"CI4","v":0},null,null,{"$f":"CL6","v":1.5},{"$f":"CM4","v":0},null,null,{"$f":"CP6","v":6.7},{"$f":"CQ4","v":0.5},null,null,{"$f":"CT6","v":4.9000000000000004},{"$f":"CU4","v":0.5},null,null,null,null,null,null,null,null,null,null,null,null,null,null,null,null,"Forstøbning"]
[null,"Bredde [m]",null,9.8000000000000007,"Ribbe til venstre [m]",null,0.2,{"$f":"IF(BZ79<0.005,\"(Under bagatelgrænsen på 0,05 W/m²K)\",\"\")","v":""},null,null,null,null,null,null,null,null,null,null,null,null,null,null,null,null,null,null,null,null,null,null,null,null,null,null,null,null,null,null,null,null,null,null,null,null,null,null,null,null,null,null,null,null,{"$f":"DL23","v":"Isolering"},0.1,"0,035",{"$f":"IF(BB8=0, 0, IF(BC8=0, 0, BB8/BC8))","v":2.8571428571428572},null,null,null,null,0.15,2.4E-2,1.2999999999999999E-2,7.0000000000000001E-3,3.0000000000000001E-3,null,null,0.15,2.4E-2,1.2999999999999999E-2,7.0000000000000001E-3,3.0000000000000001E-3,null,"Rustfast stål",5.5,1.4E-2,1.2999999999999999E-2,1.0999999999999999E-2,8.9999999999999993E-3,7.0000000000000001E-3,6.0000000000000001E-3,6.0000000000000001E-3,5.0000000000000001E-3,null,null,{"$f":"CH4","v":0},{"$f":"CI4","v":0},null,null,{"$f":"CL4","v":0.5},{"$f":"CM4","v":0},null,null,{"$f":"CP4","v":5.7},{"$f":"CQ4","v":0.5},null,null,{"$f":"CT4","v":4.4000000000000004},{"$f":"CU4","v":0.5},null,null,null,null,null,null,null,null,null,null,null,null,null,null,null,null,null,null,"Type/Beskrivelse",null,"λ \n(Varmeledningsevne)",null,"Type/Beskrivelse",null,"λ \n(Varmeledningsevne)",null,"Type/Beskrivelse",null,"λ \n(Varmeledningsevne)",null,"Type/Beskrivelse",null,"λ \n(Varmeledningsevne)",null,"Type/Beskrivelse",null,"λ \n(Varmeledningsevne)",null,null,{"$f":"Materialer!B3","v":"Type/Beskrivelse"},{"$f":"Materialer!C3","v":"λ \n(Varmeledningsevne)"},{"$f":"Materialer!E3","v":"Type/Beskrivelse"},{"$f":"Materialer!F3","v":"λ \n(Varmeledningsevne)"},{"$f":"Materialer!H3","v":"Type/Beskrivelse"},{"$f":"Materialer!I3","v":"λ \n(Varmeledningsevne)"},null,null,null,"SNIT",null,null,null,null,null,null,null,null,null,null,null,null,null,null,null,null,null,null,null,null,null,null,null,null,null,null,null,null,null,null,null,null,null,null,null,null,null,null,null,{"$f":"B19","v":"Konstruktion af ribbe omkring element"},{"$f":"B24","v":"Konstruktion af ribbe omkring dør"},{"$f":"B29","v":"Konstruktion af ribbe omkring vindue"},{"$f":"B34","v":"Konstruktion af forstærkning"}]
[null,"Højde [m]",null,4,"Ribbe til højre [m]",null,0.2,"Antal bindere pr. m²",null,8,null,"Antal",10,"stk","Varmestrømmens retning",null,"Vandret",null,null,null,null,null,null,null,null,null,null,null,null,null,null,null,null,null,null,null,null,null,null,null,null,null,null,null,null,null,null,null,null,null,null,null,"Isolering",0.1,"0,035",{"$f":"IF(BB9=0, 0, IF(BC9=0, 0, BB9/BC9))","v":2.8571428571428572},null,null,null,null,0.2,2.7E-2,1.7000000000000001E-2,1.2E-2,8.0000000000000002E-3,null,null,0.2,2.7E-2,1.7000000000000001E-2,1.2E-2,8.0000000000000002E-3,null,"Bronze",3,1.6E-2,1.4E-2,1.2999999999999999E-2,1.0999999999999999E-2,8.0000000000000002E-3,7.0000000000000001E-3,6.0000000000000001E-3,5.0000000000000001E-3,null,null,null,null,null,null,null,null,null,null,null,null,null,"Forstærkning 2",{"$f":"M23","v":4.4000000000000004},{"$f":"N23+CS12","v":1.5},null,null,null,null,null,null,null,null,null,null,null,null,null,null,null,null,null,null,null,null,"[W/mK]",null,null,null,"[W/mK]",null,null,null,"[W/mK]",null,null,null,"[W/mK]",null,null,null,"[W/mK]",null,null,{"$f":"Materialer!B4","v":0},{"$f":"Materialer!C4","v":"[W/mK]"},{"$f":"Materialer!E4","v":0},{"$f":"Materialer!F4","v":"[W/mK]"},{"$f":"Materialer!H4","v":0},{"$f":"Materialer!I4","v":"[W/mK]"}]
[null,"Tykkelse [m]",null,{"$f":"SUM(F14:F18)","v":0.5},"Ribbe i toppen [m]",null,0.2,"Materiale for binder",null,"Bronze",null,"Diameter",5,"mm","Rsi",null,{"$f":"BD6","v":0.13},"m²K/W",null,null,null,null,null,null,null,null,null,null,null,null,null,null,null,null,null,null,null,null,null,null,null,null,null,null,null,null,null,null,null,null,null,null,"Isolering",0.1,"0,035",2.8571428571428572,null,null,null,null,0.25,2.8000000000000001E-2,1.9E-2,1.4999999999999999E-2,1.0999999999999999E-2,null,null,0.25,2.8000000000000001E-2,1.9E-2,1.4999999999999999E-2,1.0999999999999999E-2,null,"Bronze",4,2.9000000000000001E-2,2.5999999999999999E-2,2.3E-2,1.9E-2,1.4E-2,1.2999999999999999E-2,1.0999999999999999E-2,8.9999999999999993E-3,null,"Højre Ribbe",{"$f":"D8-G9","v":9.6000000000000014},0,null,"Rib om dør1",{"$f":"CL4-L14","v":0.4},{"$f":"G11","v":0.2},null,"Rib om vindue1",{"$f":"CP4-L17","v":5.6000000000000005},{"$f":"CQ4-L17","v":0.4},null,null,{"$f":"CT9","v":4.4000000000000004},{"$f":"CU9+J23","v":2},null,null,null,null,null,null,null,null,null,null,null,null,null,null,null,null,"Antal valgte lag",null,{"$f":"Materialer!$H5","v":"Beton med 1% armering"},{"$f":"IF(DN10=0,\"\",DN10)","v":"Beton med 1% armering"},{"$f":"Materialer!$I5","v":2.54},{"$f":"IF(DO10=$DL$15,DP10,\"\")","v":2.54},{"$f":"Materialer!$E5","v":"Rockwool Kl. 37"},{"$f":"IF(DR10=0,\"\",DR10)","v":"Rockwool Kl. 37"},{"$f":"Materialer!$F5","v":3.6999999999999998E-2},{"$f":"IF(DS10=$DL$16,DT10,\"\")","v":""},{"$f":"Materialer!$E5","v":"Rockwool Kl. 37"},{"$f":"IF(DV10=0,\"\",DV10)","v":"Rockwool Kl. 37"},{"$f":"Materialer!$F5","v":3.6999999999999998E-2},{"$f":"IF(DW10=$DL$17,DX10,\"\")","v":""},{"$f":"Materialer!$E5","v":"Rockwool Kl. 37"},{"$f":"IF(DZ10=0,\"\",DZ10)","v":"Rockwool Kl. 37"},{"$f":"Materialer!$F5","v":3.6999999999999998E-2},{"$f":"IF(EA10=$DL$18,EB10,\"\")","v":""},{"$f":"Materialer!$B5","v":"Beton med 1% armering"},{"$f":"IF(ED10=0,\"\",ED10)","v":"Beton med 1% armering"},{"$f":"Materialer!$C5","v":2.44},{"$f":"IF(EE10=$DL$19,EF10,\"\")","v":2.44},null,{"$f":"Materialer!$B5","v":"Beton med 1% armering"},{"$f":"Materialer!$C5","v":2.44},{"$f":"Materialer!$E5","v":"Rockwool Kl. 37"},{"$f":"Materialer!$F5","v":3.6999999999999998E-2},{"$f":"Materialer!$H5","v":"Beton med 1% armering"},{"$f":"Materialer!$I5","v":2.54}]
[null,"Lag i vægkonstruktion",null,null,"Ribbe i bunden [m]",null,0.2,"Diameter [mm]",null,3,null,"Materiale","Rustfast stål",null,"Rse",null,{"$f":"BD12","v":0.04},"m²K/W",null,null,null,null,null,null,null,null,null,null,null,null,null,null,null,null,null,null,null,null,null,null,null,null,null,null,null,null,null,null,null,null,null,null,"Bagstøbning",0.1,"2,44",{"$f":"IF(BB11=0, 0, IF(BC11=0, 0, BB11/BC11))","v":4.0983606557377053E-2},null,null,null,null,null,null,null,null,null,null,null,null,null,null,null,null,null,"Bronze",5,4.4999999999999998E-2,0.04,3.5999999999999997E-2,0.03,2.1999999999999999E-2,0.02,1.7999999999999999E-2,1.4999999999999999E-2,null,null,{"$f":"CH10","v":9.6000000000000014},{"$f":"D9","v":4},null,null,{"$f":"CL10","v":0.4},{"$f":"J14+L14","v":2.1},null,null,{"$f":"CP10","v":5.6000000000000005},{"$f":"CQ10+L17+L17+J17","v":1.6},null,"Tillæg til dør1",{"$f":"CT10+K23","v":4.9000000000000004},{"$f":"CU10","v":2},null,null,null,null,null,null,null,null,null,null,null,null,null,null,null,null,5,null,{"$f":"Materialer!$H6","v":"Beton med 2% armering"},"Beton med 2% armering",{"$f":"Materialer!$I6","v":2.76},{"$f":"IF(DO11=$DL$15,DP11,\"\")","v":""},{"$f":"Materialer!$E6","v":"Rockwool Kl.35"},{"$f":"IF(DR11=0,\"\",DR11)","v":"Rockwool Kl.35"},{"$f":"Materialer!$F6","v":3.5000000000000003E-2},{"$f":"IF(DS11=$DL$16,DT11,\"\")","v":3.5000000000000003E-2},{"$f":"Materialer!$E6","v":"Rockwool Kl.35"},{"$f":"IF(DV11=0,\"\",DV11)","v":"Rockwool Kl.35"},{"$f":"Materialer!$F6","v":3.5000000000000003E-2},{"$f":"IF(DW11=$DL$17,DX11,\"\")","v":3.5000000000000003E-2},{"$f":"Materialer!$E6","v":"Rockwool Kl.35"},{"$f":"IF(DZ11=0,\"\",DZ11)","v":"Rockwool Kl.35"},{"$f":"Materialer!$F6","v":3.5000000000000003E-2},{"$f":"IF(EA11=$DL$18,EB11,\"\")","v":3.5000000000000003E-2},{"$f":"Materialer!$B6","v":"Beton med 2% armering"},{"$f":"IF(ED11=0,\"\",ED11)","v":"Beton med 2% armering"},{"$f":"Materialer!$C6","v":2.64},{"$f":"IF(EE11=$DL$19,EF11,\"\")","v":""},null,{"$f":"Materialer!$B6","v":"Beton med 2% armering"},{"$f":"Materialer!$C6","v":2.64},{"$f":"Materialer!$E6","v":"Rockwool Kl.35"},{"$f":"Materialer!$F6","v":3.5000000000000003E-2},{"$f":"Materialer!$H6","v":"Beton med 2% armering"},{"$f":"Materialer!$I6","v":2.76},null,null,null,null,"Element",null,null,null,null,"Døre",null,null,null,null,"Vinduer",null,null,null,null,"Forstærkninger"]
[null,"       Konstruktion af væg",null,null,null,"d","λ","Data for vinduer, døre og forstærkninger",null,null,null,null,null,null,{"$f":"BH69","v":"Energitab fordelt på områder"},null,{"$f":"BO70","v":"Andel af energi"},"U-værdi",null,null,null,null,null,null,null,null,null,null,null,null,null,null,null,null,null,null,null,null,null,null,null,null,null,null,null,null,null,null,null,null,null,null,"Udvendig overgangsisolans",null,null,0.04,null,null,null,"Øvre værdier",null,null,null,"Udtræk fra tabel",null,null,"Øvre værdier",null,null,null,"Udtræk fra tabel",null,null,"Forzinket jern",8,9.7000000000000003E-2,8.6999999999999994E-2,7.8E-2,6.4000000000000001E-2,4.9000000000000002E-2,4.2999999999999997E-2,3.9E-2,3.2000000000000001E-2,null,null,{"$f":"D8","v":9.8000000000000007},{"$f":"CI11","v":4},null,null,{"$f":"CL11+L14+L14+K14","v":1.6},{"$f":"CM11","v":2.1},null,null,{"$f":"CP11+L17+L17+K17","v":6.8},{"$f":"CQ11","v":1.6},null,null,{"$f":"CT11","v":4.9000000000000004},{"$f":"CU9","v":1.5},null,null,null,null,null,null,null,null,null,null,null,null,null,null,null,null,null,null,{"$f":"Materialer!$H7","v":"Beton rho=1800 kg/m³"},"Beton rho=1800 kg/m³",{"$f":"Materialer!$I7","v":1.3},"",{"$f":"Materialer!$E7","v":"Eps"},"Eps",{"$f":"Materialer!$F7","v":3.1E-2},"",{"$f":"Materialer!$E7","v":"Eps"},"Eps",{"$f":"Materialer!$F7","v":3.1E-2},"",{"$f":"Materialer!$E7","v":"Eps"},"Eps",{"$f":"Materialer!$F7","v":3.1E-2},"",{"$f":"Materialer!$B7","v":"Beton rho=1800 kg/m³"},"Beton rho=1800 kg/m³",{"$f":"Materialer!$C7","v":1.2},"",null,{"$f":"Materialer!$B7","v":"Beton rho=1800 kg/m³"},{"$f":"Materialer!$C7","v":1.2},{"$f":"Materialer!$E7","v":"Eps"},{"$f":"Materialer!$F7","v":3.1E-2},{"$f":"Materialer!$H7","v":"Beton rho=1800 kg/m³"},{"$f":"Materialer!$I7","v":1.3},null,null,null,null,null,"X","Y","Ligger i snittet?",null,null,"x","y","Ligger i snittet?",null,null,"x","y","Ligger i snittet?",null,null,null,null,"Ligger i snittet?",null,null,null,"Y-værdier","Y-værdier","Dybde"]
[null,null,null,null,null,"[m]","[W/mK]",null,null,"h [m]","b [m]","ribbe [m]","x [m]","y [m]",null,null,{"$f":"BO71","v":"[%]"},"[W/m²K]",null,null,null,null,null,null,null,null,null,null,null,null,null,null,null,null,null,null,null,null,null,null,null,null,null,null,null,null,null,null,null,null,null,null,null,null,"ƩR",{"$f":"SUM(BD6:BD12)","v":8.8217822567261059},null,{"$f":"1/BD13","v":0.11335577901365192},null,"Isolering i væg",{"$f":"IF(BW$64<BI7,BI7,IF(BW$64<BI8,BI8,IF(BW$64<BI9,BI9,IF(BW$64>=BI9,BI10,\"FEJL\"))))","v":0.25},null,null,"Min","Maks",null,"Isolering i væg",{"$f":"IF(BW$64<BP7,BP7,IF(BW$64<BP8,BP8,IF(BW$64<BP9,BP9,IF(BW$64>=BP9,BP10,\"FEJL\"))))","v":0.25},null,null,"Min","Maks",null,null,null,null,null,null,null,null,null,null,null,null,null,{"$f":"CH12","v":9.8000000000000007},{"$f":"CI10","v":0},null,null,{"$f":"CL12","v":1.6},{"$f":"CM10","v":0.2},null,null,{"$f":"CP12","v":6.8},{"$f":"CQ10","v":0.4},null,null,{"$f":"CT9","v":4.4000000000000004},{"$f":"CU9","v":1.5},null,null,null,null,null,null,null,null,null,null,null,null,null,null,null,null,null,null,{"$f":"Materialer!$H8","v":"Beton rho=2100 kg/m³"},"Beton rho=2100 kg/m³",{"$f":"Materialer!$I8","v":1.65},"",{"$f":"Materialer!$E8","v":"Pir"},"Pir",{"$f":"Materialer!$F8","v":2.3E-2},"",{"$f":"Materialer!$E8","v":"Pir"},"Pir",{"$f":"Materialer!$F8","v":2.3E-2},"",{"$f":"Materialer!$E8","v":"Pir"},"Pir",{"$f":"Materialer!$F8","v":2.3E-2},"",{"$f":"Materialer!$B8","v":"Beton rho=2100 kg/m³"},"Beton rho=2100 kg/m³",{"$f":"Materialer!$C8","v":1.55},"",null,{"$f":"Materialer!$B8","v":"Beton rho=2100 kg/m³"},{"$f":"Materialer!$C8","v":1.55},{"$f":"Materialer!$E8","v":"Pir"},{"$f":"Materialer!$F8","v":2.3E-2},{"$f":"Materialer!$H8","v":"Beton rho=2100 kg/m³"},{"$f":"Materialer!$I8","v":1.65},null,null,null,null,"Venstre Ribbe",{"$f":"CH4","v":0},0,{"$f":"IF(MAX(ET13:ET17)>=$V$6,1,0)*IF(MIN(ET13:ET17)<=$V$6,1,0)","v":0},null,"Dør1",{"$f":"CL4","v":0.5},0,{"$f":"IF(MAX(EY13:EY17)>$V$6,1,0)*IF(MIN(EY13:EY17)<$V$6,1,0)","v":1},null,"Vindue1",{"$f":"CP4","v":5.7},0.5,{"$f":"IF(MAX(FD13:FD17)>$V$6,1,0)*IF(MIN(FD13:FD17)<$V$6,1,0)","v":0},{"$f":"IF($FF$13>0,FE13,\"\")","v":""},"Forstærkning 1",{"$f":"CT4","v":4.4000000000000004},{"$f":"CU4","v":0.5},{"$f":"IF(MAX(FI13:FI17)>=$V$6,1,0)*IF(MIN(FI13:FI17)<=$V$6,1,0)","v":0},{"$f":"IF($FK$13>0,FJ13,\"\")","v":""},"Bundribbe","Bund ",0,{"$f":"IF(FO14>0,FO13,\"\")","v":""},{"$f":"IF(FO14>0,F23,\"\")","v":""},null,null,null,null,null,null,null,null,null,"Type valgt","Eps",null,"Isoleringer til ripper"]
[null,null,null,null,null,0.1,{"$f":"$DQ$10&$DQ$11&$DQ$12&$DQ$13&$DQ$14&$DQ$15&$DQ$16&$DQ$17&$DQ$18&$DQ$19&$DQ$20&$DQ$21&$DQ$22&$DQ$23&$DQ$24&$DQ$25&$DQ$26&$DQ$27&$DQ$28&$DQ$29&$DQ$30&$DQ$31&$DQ$32&$DQ$33&$DQ$34&$DQ$35&$DQ$36&$DQ$37&$DQ$38&$DQ$39&$DQ$40","v":"2,54"},null,null,2,1,0.1,0.5,null,{"$f":"BH73","v":"Hovedelement"},null,{"$f":"BO73","v":56.712801665107946},{"$f":"BM73","v":0.11335577901365192},null,null,null,null,null,null,null,null,null,null,null,null,null,null,null,null,null,null,null,null,null,null,null,null,null,null,null,null,null,null,null,null,null,null,"Korrektion for murbindre",null,null,null,null,null,null,"Ribbeisolering",{"$f":"IF(F$22<BJ6,BJ6,IF(F$22<BK6,BK6,IF(F$22<BL6,BL6,IF(F$22>=BL6,BM6,\"FEJL\"))))","v":0.1},null,null,{"$f":"IF($BI$21<BK$6,BJ7,IF(AND($BI$21>=BK$6,$BI$21<BL$6),BK7,IF(AND($BI$21>=BL$6,$BI$21<BM$6),BL7,IF($BI$21>=BM$6,BM7,\"FEJL\"))))","v":0},{"$f":"IF($BI$14<BK$6,BJ7,IF(AND($BI$14>=BK$6,$BI$14<BL$6),BK7,IF(AND($BI$14>=BL$6,$BI$14<BM$6),BL7,IF($BI$14>=BM$6,BM7,\"FEJL\"))))","v":0},null,"Ribbeisolering",{"$f":"IF(F$27<BQ6,BQ6,IF(F$27<BR6,BR6,IF(F$27<BS6,BS6,IF(F$27>=BS6,BT6,\"FEJL\"))))","v":0.1},null,null,{"$f":"IF($BP$21<BR$6,BQ7,IF(AND($BP$21>=BR$6,$BP$21<BS$6),BR7,IF(AND($BP$21>=BS$6,$BP$21<BT$6),BS7,IF($BP$21>=BT$6,BT7,\"FEJL\"))))","v":0},{"$f":"IF($BP$14<BR$6,BQ7,IF(AND($BP$14>=BR$6,$BP$14<BS$6),BR7,IF(AND($BP$14>=BS$6,$BP$14<BT$6),BS7,IF($BP$14>=BT$6,BT7,\"FEJL\"))))","v":0},null,null,null,null,null,null,null,null,null,null,null,null,null,{"$f":"CH10","v":9.6000000000000014},{"$f":"CI10","v":0},null,null,null,null,null,null,{"$f":"CP10","v":5.6000000000000005},{"$f":"CQ10","v":0.4},null,"Forstærkning 3",{"$f":"M24","v":4.4000000000000004},{"$f":"N24+CS17","v":2.5},null,null,null,null,null,null,null,null,null,null,null,null,null,null,null,"Materiale valgt",null,null,{"$f":"Materialer!$H9","v":"Beton rho=2400 kg/m³"},"Beton rho=2400 kg/m³",{"$f":"Materialer!$I9","v":2.2000000000000002},"",{"$f":"Materialer!$E9","v":"Spaceline"},"Spaceline",{"$f":"Materialer!$F9","v":0.04},"",{"$f":"Materialer!$E9","v":"Spaceline"},"Spaceline",{"$f":"Materialer!$F9","v":0.04},"",{"$f":"Materialer!$E9","v":"Spaceline"},"Spaceline",{"$f":"Materialer!$F9","v":0.04},"",{"$f":"Materialer!$B9","v":"Beton rho=2400 kg/m³"},"Beton rho=2400 kg/m³",{"$f":"Materialer!$C9","v":2.1},"",null,{"$f":"Materialer!$B9","v":"Beton rho=2400 kg/m³"},{"$f":"Materialer!$C9","v":2.1},{"$f":"Materialer!$E9","v":"Spaceline"},{"$f":"Materialer!$F9","v":0.04},{"$f":"Materialer!$H9","v":"Beton rho=2400 kg/m³"},{"$f":"Materialer!$I9","v":2.2000000000000002},null,null,null,null,null,0,4,null,null,null,0.5,2,null,null,null,5.7,1.5,null,{"$f":"IF($FF$13>0,FE14,\"\")","v":""},null,4.4000000000000004,1,null,{"$f":"IF($FK$13>0,FJ14,\"\")","v":""},null,"Top",{"$f":"G11*MAX(EV31:EV49)","v":0},{"$f":"IF(FO14>0,FO14,\"\")","v":""},null,null,null,null,null,null,null,null,null,null,{"$f":"GF8","v":"Konstruktion af ribbe omkring element"},"Rockwool Kl. 37",null,{"$f":"IF(EK10=0,\"\",EK10)","v":"Rockwool Kl. 37"},{"$f":"IF(EL10=0,\"\",EL10)","v":3.6999999999999998E-2},{"$f":"IF(GD14=$GB$14,GE14,\"\")","v":3.6999999999999998E-2},{"$f":"IF(GD14=$GB$15,GE14,\"\")","v":3.6999999999999998E-2},{"$f":"IF(GD14=$GB$16,GE14,\"\")","v":3.6999999999999998E-2},{"$f":"IF(GD14=$GB$17,GE14,\"\")","v":3.6999999999999998E-2}]
[null,null,null,null,null,0.1,{"$f":"$DU$10&$DU$11&$DU$12&$DU$13&$DU$14&$DU$15&$DU$16&$DU$17&$DU$18&$DU$19&$DU$20&$DU$21&$DU$22&$DU$23&$DU$24&$DU$25&$DU$26&$DU$27&$DU$28&$DU$29&$DU$30&$DU$31&$DU$32&$DU$33&$DU$34&$DU$35&$DU$36&$DU$37&$DU$38&$DU$39&$DU$40","v":"0,035"},null,null,2,1,0.1,1.8,null,{"$f":"BH75","v":"Ribbe omkring element"},null,{"$f":"BO75","v":20.820082585623176},{"$f":"BM75","v":0.14231238160318488},null,null,null,null,null,null,null,null,null,null,null,null,null,null,null,null,null,null,null,null,null,null,null,null,null,null,null,null,null,null,null,null,null,null,"ΔUf",null,null,null,null,{"$f":"IF(BZ79<0.005,0,BZ79)","v":9.2486425464239491E-3},null,"Y-aksen 1",{"$f":"IF(BI13<BI8,BL14,IF(AND(BI13>=BI8,BI13<BI9),BL15,IF(AND(BI13>=BI9,BI13<BI10),BL16,IF(BI13>=BI10,BL17,\"FEJL\"))))","v":1.0999999999999999E-2},null,null,{"$f":"IF($BI$21<BK$6,BJ8,IF(AND($BI$21>=BK$6,$BI$21<BL$6),BK8,IF(AND($BI$21>=BL$6,$BI$21<BM$6),BL8,IF($BI$21>=BM$6,BM8,\"FEJL\"))))","v":3.0000000000000001E-3},{"$f":"IF($BI$14<BK$6,BJ8,IF(AND($BI$14>=BK$6,$BI$14<BL$6),BK8,IF(AND($BI$14>=BL$6,$BI$14<BM$6),BL8,IF($BI$14>=BM$6,BM8,\"FEJL\"))))","v":3.0000000000000001E-3},null,"Y-aksen 1",{"$f":"IF(BP13<BP8,BS14,IF(AND(BP13>=BP8,BP13<BP9),BS15,IF(AND(BP13>=BP9,BP13<BP10),BS16,IF(BP13>=BP10,BS17,\"FEJL\"))))","v":1.0999999999999999E-2},null,null,{"$f":"IF($BP$21<BR$6,BQ8,IF(AND($BP$21>=BR$6,$BP$21<BS$6),BR8,IF(AND($BP$21>=BS$6,$BP$21<BT$6),BS8,IF($BP$21>=BT$6,BT8,\"FEJL\"))))","v":3.0000000000000001E-3},{"$f":"IF($BP$14<BR$6,BQ8,IF(AND($BP$14>=BR$6,$BP$14<BS$6),BR8,IF(AND($BP$14>=BS$6,$BP$14<BT$6),BS8,IF($BP$14>=BT$6,BT8,\"FEJL\"))))","v":3.0000000000000001E-3},null,null,null,null,null,null,null,null,null,null,null,null,null,null,null,null,"Dør2",{"$f":"M15","v":1.8},{"$f":"CK18","v":0},null,"Vindue2",{"$f":"M18","v":5.7},{"$f":"N18+CO18","v":2},null,null,{"$f":"CT14","v":4.4000000000000004},{"$f":"CU14+J24","v":3},null,null,null,null,null,null,null,null,null,null,null,null,null,null,null,"1. lag","Beton med 1% armering",null,{"$f":"Materialer!$H10","v":0},"",{"$f":"Materialer!$I10","v":0},"",{"$f":"Materialer!$E10","v":0},"",{"$f":"Materialer!$F10","v":0},"",{"$f":"Materialer!$E10","v":0},"",{"$f":"Materialer!$F10","v":0},"",{"$f":"Materialer!$E10","v":0},"",{"$f":"Materialer!$F10","v":0},"",{"$f":"Materialer!$B10","v":0},"",{"$f":"Materialer!$C10","v":0},"",null,{"$f":"Materialer!$B10","v":0},{"$f":"Materialer!$C10","v":0},{"$f":"Materialer!$E10","v":0},{"$f":"Materialer!$F10","v":0},{"$f":"Materialer!$H10","v":0},{"$f":"Materialer!$I10","v":0},null,null,null,null,null,0.2,4,null,null,null,1.5,2,null,null,null,6.7,1.5,null,null,null,4.9000000000000004,1,null,null,"Topribbe","Bund ",{"$f":"EV25*EU25","v":3.8},{"$f":"IF(FO15>0,FO15,\"\")","v":3.8},{"$f":"IF(FO16>0,F23,\"\")","v":0.15},null,null,null,null,null,null,null,null,null,{"$f":"GG8","v":"Konstruktion af ribbe omkring dør"},"Rockwool Kl. 37",null,"Rockwool Kl.35",3.5000000000000003E-2,"","","",""]
[null,null,null,null,null,0.1,{"$f":"$DY$10&$DY$11&$DY$12&$DY$13&$DY$14&$DY$15&$DY$16&$DY$17&$DY$18&$DY$19&$DY$20&$DY$21&$DY$22&$DY$23&$DY$24&$DY$25&$DY$26&$DY$27&$DY$28&$DY$29&$DY$30&$DY$31&$DY$32&$DY$33&$DY$34&$DY$35&$DY$36&$DY$37&$DY$38&$DY$39&$DY$40","v":"0,035"},null,null,2,1,0.1,3.1,null,{"$f":"BH76","v":"Ribbe omkring dør"},null,6.059576274920178,{"$f":"BM76","v":0.14231238160318488},null,null,null,null,null,null,null,null,null,null,null,null,null,null,null,null,null,null,null,null,null,null,null,null,null,null,null,null,null,null,null,null,null,null,null,null,null,null,{"$f":"BW44","v":18.329999999999998},{"$f":"SUM(BF13,BF15)","v":0.12260442156007587},null,"Y-aksen 2",{"$f":"IF(BI13<BI8,BM14,IF(AND(BI13>=BI8,BI13<BI9),BM15,IF(AND(BI13>=BI9,BI13<BI10),BM16,IF(BI13>=BI10,BM17,\"FEJL\"))))","v":1.0999999999999999E-2},null,null,{"$f":"IF($BI$21<BK$6,BJ9,IF(AND($BI$21>=BK$6,$BI$21<BL$6),BK9,IF(AND($BI$21>=BL$6,$BI$21<BM$6),BL9,IF($BI$21>=BM$6,BM9,\"FEJL\"))))","v":8.0000000000000002E-3},{"$f":"IF($BI$14<BK$6,BJ9,IF(AND($BI$14>=BK$6,$BI$14<BL$6),BK9,IF(AND($BI$14>=BL$6,$BI$14<BM$6),BL9,IF($BI$14>=BM$6,BM9,\"FEJL\"))))","v":8.0000000000000002E-3},null,"Y-aksen 2",{"$f":"IF(BP13<BP8,BT14,IF(AND(BP13>=BP8,BP13<BP9),BT15,IF(AND(BP13>=BP9,BP13<BP10),BT16,IF(BP13>=BP10,BT17,\"FEJL\"))))","v":1.0999999999999999E-2},null,null,8.0000000000000002E-3,8.0000000000000002E-3,null,null,null,null,null,null,null,null,null,null,null,null,"Top Ribbe",{"$f":"G8","v":0.2},{"$f":"D9-G10","v":3.8},null,null,{"$f":"CL15","v":1.8},{"$f":"CM15+J15","v":2},null,null,{"$f":"CP15","v":5.7},{"$f":"CQ15+J18","v":3},null,"Tillæg til dør1",{"$f":"CT15+K24","v":4.9000000000000004},{"$f":"CU15","v":3},null,null,null,null,null,null,null,null,null,null,null,null,null,null,null,"2. lag","Rockwool Kl.35",null,{"$f":"Materialer!$H11","v":0},"",{"$f":"Materialer!$I11","v":0},"",{"$f":"Materialer!$E11","v":0},"",{"$f":"Materialer!$F11","v":0},"",{"$f":"Materialer!$E11","v":0},"",{"$f":"Materialer!$F11","v":0},"",{"$f":"Materialer!$E11","v":0},"",{"$f":"Materialer!$F11","v":0},"",{"$f":"Materialer!$B11","v":0},"",{"$f":"Materialer!$C11","v":0},"",null,{"$f":"Materialer!$B11","v":0},{"$f":"Materialer!$C11","v":0},{"$f":"Materialer!$E11","v":0},{"$f":"Materialer!$F11","v":0},{"$f":"Materialer!$H11","v":0},{"$f":"Materialer!$I11","v":0},null,null,null,null,null,0.2,0,null,null,null,1.5,0,null,null,null,6.7,0.5,null,null,null,4.9000000000000004,0.5,null,null,null,"Top",{"$f":"EV25*EU26","v":4},{"$f":"IF(FO16>0,FO16,\"\")","v":4},null,null,null,null,null,null,null,null,null,null,{"$f":"GH8","v":"Konstruktion af ribbe omkring vindue"},"Rockwool Kl. 37",null,"Eps",3.1E-2,"","","",""]
[null,null,null,null,null,0.1,{"$f":"$EC$10&$EC$11&$EC$12&$EC$13&$EC$14&$EC$15&$EC$16&$EC$17&$EC$18&$EC$19&$EC$20&$EC$21&$EC$22&$EC$23&$EC$24&$EC$25&$EC$26&$EC$27&$EC$28&$EC$29&$EC$30&$EC$31&$EC$32&$EC$33&$EC$34&$EC$35&$EC$36&$EC$37&$EC$38&$EC$39&$EC$40","v":"0,035"},null,null,1,1,0.1,5.7,0.5,{"$f":"BH77","v":"Ribbe omkring vindue"},null,8.5455562851438387,{"$f":"BM77","v":0.14231238160318488},null,null,null,null,null,null,null,null,null,null,null,null,null,null,null,null,null,null,null,null,null,null,null,null,null,null,null,null,null,null,null,null,null,null,{"$f":"B19","v":"Konstruktion af ribbe omkring element"},null,null,null,null,null,null,"Y12",{"$f":"IF(BI15=BI16,BI15,BI15+((BI16-BI15)*((F22-BI$26)/(BI$27-BI$26))))","v":1.0999999999999999E-2},null,null,{"$f":"IF($BI$21<BK$6,BJ10,IF(AND($BI$21>=BK$6,$BI$21<BL$6),BK10,IF(AND($BI$21>=BL$6,$BI$21<BM$6),BL10,IF($BI$21>=BM$6,BM10,\"FEJL\"))))","v":1.0999999999999999E-2},{"$f":"IF($BI$14<BK$6,BJ10,IF(AND($BI$14>=BK$6,$BI$14<BL$6),BK10,IF(AND($BI$14>=BL$6,$BI$14<BM$6),BL10,IF($BI$14>=BM$6,BM10,\"FEJL\"))))","v":1.0999999999999999E-2},null,"Y12",{"$f":"IF(BP15=BP16,BP15,BP15+((BP16-BP15)*((F27-BP$26)/(BP$27-BP$26))))","v":1.0999999999999999E-2},null,null,1.0999999999999999E-2,1.0999999999999999E-2,null,"Udvælger værdi",null,null,null,null,null,null,null,null,null,null,null,{"$f":"CH16","v":0.2},{"$f":"CI16+G10","v":4},null,"Tillæg til dør1",{"$f":"CL16+K15","v":2.8},{"$f":"CM16","v":2},null,"Tillæg til dør1",{"$f":"CP16+K18","v":6.7},{"$f":"CQ16","v":3},null,null,{"$f":"CT16","v":4.9000000000000004},{"$f":"CU14","v":2.5},null,null,null,null,null,null,null,null,null,null,null,null,null,null,null,"3. lag","Rockwool Kl.35",null,{"$f":"Materialer!$H12","v":0},"",{"$f":"Materialer!$I12","v":0},"",{"$f":"Materialer!$E12","v":0},"",{"$f":"Materialer!$F12","v":0},"",{"$f":"Materialer!$E12","v":0},"",{"$f":"Materialer!$F12","v":0},"",{"$f":"Materialer!$E12","v":0},"",{"$f":"Materialer!$F12","v":0},"",{"$f":"Materialer!$B12","v":0},"",{"$f":"Materialer!$C12","v":0},"",null,{"$f":"Materialer!$B12","v":0},{"$f":"Materialer!$C12","v":0},{"$f":"Materialer!$E12","v":0},{"$f":"Materialer!$F12","v":0},{"$f":"Materialer!$H12","v":0},{"$f":"Materialer!$I12","v":0},null,null,null,null,null,0,0,null,null,null,0.5,0,null,null,null,5.7,0.5,null,null,null,4.4000000000000004,0.5,null,null,"Højre/venstre ribbe","Top ",{"$f":"SUM(EV13,EV19)*D9","v":0},{"$f":"IF(FO18>0,FO17,\"\")","v":""},{"$f":"IF(FO17>0,F23,\"\")","v":""},null,null,null,null,null,null,null,null,null,{"$f":"GI8","v":"Konstruktion af forstærkning"},"Rockwool Kl. 37",null,"Pir",2.3E-2,"","","",""]
[null,null,null,null,null,0.1,{"$f":"$EG$10&$EG$11&$EG$12&$EG$13&$EG$14&$EG$15&$EG$16&$EG$17&$EG$18&$EG$19&$EG$20&$EG$21&$EG$22&$EG$23&$EG$24&$EG$25&$EG$26&$EG$27&$EG$28&$EG$29&$EG$30&$EG$31&$EG$32&$EG$33&$EG$34&$EG$35&$EG$36&$EG$37&$EG$38&$EG$39&$EG$40","v":"2,44"},null,null,1,1,0.1,5.7,2,{"$f":"BH78","v":"Forstærkning"},null,2.9132578244808545,{"$f":"BM78","v":0.14231238160318488},null,null,null,null,null,null,null,null,null,null,null,null,null,null,null,null,null,null,null,null,null,null,null,null,null,null,null,null,null,null,null,null,null,null,"Indvendig overgangsisolans",null,null,{"$f":"BD6","v":0.13},null,null,null,null,null,null,null,null,null,null,null,null,null,null,null,null,null,null,null,null,null,null,null,null,null,null,null,null,null,{"$f":"D8-G9","v":9.6000000000000014},{"$f":"CI17","v":4},null,null,{"$f":"CL17","v":2.8},{"$f":"CM15","v":0},null,null,{"$f":"CP17","v":6.7},{"$f":"CQ15","v":2},null,null,{"$f":"CT14","v":4.4000000000000004},{"$f":"CU14","v":2.5},null,null,null,null,null,null,null,null,null,null,null,null,null,null,null,"4. lag","Rockwool Kl.35",null,{"$f":"Materialer!$H13","v":0},"",{"$f":"Materialer!$I13","v":0},"",{"$f":"Materialer!$E13","v":0},"",{"$f":"Materialer!$F13","v":0},"",{"$f":"Materialer!$E13","v":0},"",{"$f":"Materialer!$F13","v":0},"",{"$f":"Materialer!$E13","v":0},"",{"$f":"Materialer!$F13","v":0},"",{"$f":"Materialer!$B13","v":0},"",{"$f":"Materialer!$C13","v":0},"",null,{"$f":"Materialer!$B13","v":0},{"$f":"Materialer!$C13","v":0},{"$f":"Materialer!$E13","v":0},{"$f":"Materialer!$F13","v":0},{"$f":"Materialer!$H13","v":0},{"$f":"Materialer!$I13","v":0},null,null,null,null,null,null,null,null,null,null,null,null,null,null,null,null,null,null,null,"Forstærkning 2",4.4000000000000004,1.5,{"$f":"IF(MAX(FI18:FI22)>=$V$6,1,0)*IF(MIN(FI18:FI22)<=$V$6,1,0)","v":0},{"$f":"IF($FK$18>0,FJ18,\"\")","v":""},null,"Bund ",0,{"$f":"IF(FO18>0,FO18,\"\")","v":""},null,null,null,null,null,null,null,null,null,null,null,null,null,"Spaceline",0.04,"","","",""]
[null,"Konstruktion af ribbe omkring element",null,null,null,"d","λ",null,null,1,1,0.1,7,0.5,{"$f":"BH81","v":"Linjetab element"},null,{"$f":"BO81","v":0},null,null,null,null,null,null,null,null,null,null,null,null,null,null,null,null,null,null,null,null,null,null,null,null,null,null,null,null,null,null,null,null,null,null,null,{"$f":"B21","v":"Forstøbning"},{"$f":"F23","v":0.15},{"$f":"G21","v":"2,54"},{"$f":"IF(BB19=0, 0, IF(BC19=0, 0, BB19/BC19))","v":5.905511811023622E-2},null,null,null,"Nedre værdier",null,null,null,null,null,null,"Nedre værdier",null,null,null,null,null,null,"Trådbinderetype","Diameter mm",{"$f":"IF(Forside!J9=4,CB2,BX2)","v":"8 bindere pr. m²"},null,null,null,null,"Værdi ud fra isoleringstykkelsen i m [W/m²K]",null,null,null,null,{"$f":"CH18","v":9.6000000000000014},{"$f":"CI16","v":3.8},null,null,{"$f":"CL15","v":1.8},{"$f":"CM15","v":0},null,null,{"$f":"CP15","v":5.7},{"$f":"CQ15","v":2},null,null,null,null,null,null,null,null,null,null,null,null,null,null,null,null,null,null,null,"5. lag","Beton med 1% armering",null,{"$f":"Materialer!$H14","v":0},"",{"$f":"Materialer!$I14","v":0},"",{"$f":"Materialer!$E14","v":0},"",{"$f":"Materialer!$F14","v":0},"",{"$f":"Materialer!$E14","v":0},"",{"$f":"Materialer!$F14","v":0},"",{"$f":"Materialer!$E14","v":0},"",{"$f":"Materialer!$F14","v":0},"",{"$f":"Materialer!$B14","v":0},"",{"$f":"Materialer!$C14","v":0},"",null,{"$f":"Materialer!$B14","v":0},{"$f":"Materialer!$C14","v":0},{"$f":"Materialer!$E14","v":0},{"$f":"Materialer!$F14","v":0},{"$f":"Materialer!$H14","v":0},{"$f":"Materialer!$I14","v":0},null,null,null,null,"Højre Ribbe",{"$f":"CH10","v":9.6000000000000014},0,{"$f":"IF(MAX(ET19:ET23)>=$V$6,1,0)*IF(MIN(ET19:ET23)<=$V$6,1,0)","v":0},null,"Rib om dør1",{"$f":"CL10","v":0.4},0.2,{"$f":"IF(MAX(EY19:EY23)>=$V$6,1,0)*IF(MIN(EY19:EY23)<=$V$6,1,0)","v":1},null,"Rib om vindue1",{"$f":"CP10","v":5.6000000000000005},{"$f":"CQ10","v":0.4},{"$f":"IF(MAX(FD19:FD23)>=$V$6,1,0)*IF(MIN(FD19:FD23)<=$V$6,1,0)","v":0},{"$f":"IF($FF$19>0,FE19,\"\")","v":""},null,4.4000000000000004,2,null,{"$f":"IF($FK$18>0,FJ19,\"\")","v":""},"Dør","Bund ",0,{"$f":"IF(FO20>0,FO19,\"\")","v":0},{"$f":"IF(FO20>0,F28,\"\")","v":0.15},null,null,null,null,null,null,null,null,null,null,null,null,"","","","","",""]
[null,null,null,null,null,"[m]","[W/mK]",null,null,1,1,0.1,7,2,{"$f":"BH82","v":"Linjetab dør"},null,{"$f":"BO82","v":0},null,null,null,null,null,null,null,null,null,null,null,null,null,null,null,null,null,null,null,null,null,null,null,null,null,null,null,null,null,null,null,null,null,null,null,{"$f":"B22","v":"Isolering"},0.24999999999999997,3.6999999999999998E-2,{"$f":"IF(BB20=0, 0, IF(BC20=0, 0, BB20/BC20))","v":6.7567567567567561},null,null,null,"Isolering i væg",{"$f":"IF(BW$64<BI8,BI7,IF(BW$64<BI9,BI8,IF(BW$64<BI10,BI9,IF(BW$64>=BI10,BI10,\"FEJL\"))))","v":0.25},null,null,null,null,null,"Isolering i væg",{"$f":"IF(BW$64<BP8,BP7,IF(BW$64<BP9,BP8,IF(BW$64<BP10,BP9,IF(BW$64>=BP10,BP10,\"FEJL\"))))","v":0.25},null,null,null,null,null,null,null,"Isoleringstykkelse [m]",null,null,null,null,null,null,null,null,null,{"$f":"CH16","v":0.2},{"$f":"CI16","v":3.8},null,null,null,null,null,null,null,null,null,null,null,null,null,null,null,null,null,null,null,null,null,null,null,null,null,null,null,null,null,null,{"$f":"Materialer!$H15","v":0},"",{"$f":"Materialer!$I15","v":0},"",{"$f":"Materialer!$E15","v":0},"",{"$f":"Materialer!$F15","v":0},"",{"$f":"Materialer!$E15","v":0},"",{"$f":"Materialer!$F15","v":0},"",{"$f":"Materialer!$E15","v":0},"",{"$f":"Materialer!$F15","v":0},"",{"$f":"Materialer!$B15","v":0},"",{"$f":"Materialer!$C15","v":0},"",null,{"$f":"Materialer!$B15","v":0},{"$f":"Materialer!$C15","v":0},{"$f":"Materialer!$E15","v":0},{"$f":"Materialer!$F15","v":0},{"$f":"Materialer!$H15","v":0},{"$f":"Materialer!$I15","v":0},null,null,null,null,null,9.6000000000000014,4,null,null,null,0.4,2.1,null,null,null,5.6000000000000005,1.6,null,{"$f":"IF($FF$19>0,FE20,\"\")","v":""},null,4.9000000000000004,2,null,null,null,"Top",{"$f":"MAX(EZ14*FA13,EZ25*FA24,EZ36*FA35)","v":2},{"$f":"IF(FO20>0,FO20,\"\")","v":2},null,null,null,null,null,null,null,null,null,null,null,null,null,"","","","","",""]
[null,"Forstøbning",null,null,null,{"$f":"BW67","v":0.1},{"$f":"G14","v":"2,54"},null,null,1,1,0.1,8.3000000000000007,0.5,{"$f":"BH83","v":"Linjetab vinduer"},null,{"$f":"BO83","v":0},null,null,null,null,null,null,null,null,null,null,null,null,null,null,null,null,null,null,null,null,null,null,null,null,null,null,null,null,null,null,null,null,null,null,null,{"$f":"B23","v":"Bagstøbning"},{"$f":"F21","v":0.1},2.44,{"$f":"IF(BB21=0, 0, IF(BC21=0, 0, BB21/BC21))","v":4.0983606557377053E-2},null,null,null,"Ribbeisolering",{"$f":"IF(F$22<BK$6,BJ6,IF(F$22<BL$6,BK6,IF(F$22<BM$6,BL6,IF(F$22>=BL6,BM6,\"FEJL\"))))","v":0.1},null,null,null,null,null,"Ribbeisolering",{"$f":"IF(F$27<BR$6,BQ6,IF(F$27<BS$6,BR6,IF(F$27<BT$6,BS6,IF(F$27>=BS6,BT6,\"FEJL\"))))","v":0.1},null,null,null,null,null,null,null,0.1,0.125,0.15,0.2,null,null,null,null,null,null,null,null,null,"Rib om dør2",{"$f":"CL15-L15","v":1.7},{"$f":"G11","v":0.2},null,"Rib om vindue2",{"$f":"CP15-L18","v":5.6000000000000005},{"$f":"CQ15-L18","v":1.9},null,null,null,null,null,null,null,null,null,null,null,null,null,null,null,null,null,null,null,"Type valgt",null,null,{"$f":"Materialer!$H16","v":0},"",{"$f":"Materialer!$I16","v":0},"",{"$f":"Materialer!$E16","v":0},"",{"$f":"Materialer!$F16","v":0},"",{"$f":"Materialer!$E16","v":0},"",{"$f":"Materialer!$F16","v":0},"",{"$f":"Materialer!$E16","v":0},"",{"$f":"Materialer!$F16","v":0},"",{"$f":"Materialer!$B16","v":0},"",{"$f":"Materialer!$C16","v":0},"",null,{"$f":"Materialer!$B16","v":0},{"$f":"Materialer!$C16","v":0},{"$f":"Materialer!$E16","v":0},{"$f":"Materialer!$F16","v":0},{"$f":"Materialer!$H16","v":0},{"$f":"Materialer!$I16","v":0},null,null,null,null,null,9.8000000000000007,4,null,null,null,1.6,2.1,null,null,null,6.8,1.6,null,null,null,4.9000000000000004,1.5,null,null,null,"Ribbe",{"$f":"MAX(EZ20*FA19,EZ31*FA30,EZ42*FA41)","v":2.1},{"$f":"IF(FO21>0,FO21,\"\")","v":2.1},null,null,null,null,null,null,null,null,null,null,null,null,null,"","","","","",""]
[null,"Isolering",null,null,null,{"$f":"$D$10-F23-F21","v":0.24999999999999997},{"$f":"SUM($GF$14:$GF$44)","v":3.6999999999999998E-2},null,null,0.5,0.5,null,4.4000000000000004,0.5,{"$f":"BH84","v":"Linjetab forstærkninger"},null,{"$f":"BO84","v":0},null,null,null,null,null,null,null,null,null,null,null,null,null,null,null,null,null,null,null,null,null,null,null,null,null,null,null,null,null,null,null,null,null,null,null,"Udvendig overgangsisolans",null,null,{"$f":"BD12","v":0.04},null,null,null,"Y-aksen 1",{"$f":"IF(BI20<BI8,BL14,IF(AND(BI20>=BI8,BI20<BI9),BL15,IF(AND(BI20>=BI9,BI20<BI10),BL16,IF(BI20>=BI10,BL17,\"FEJL\"))))","v":1.0999999999999999E-2},null,null,null,null,null,"Y-aksen 1",{"$f":"IF(BP20<BP8,BS14,IF(AND(BP20>=BP8,BP20<BP9),BS15,IF(AND(BP20>=BP9,BP20<BP10),BS16,IF(BP20>=BP10,BS17,\"FEJL\"))))","v":1.0999999999999999E-2},null,null,null,null,null,"Plast",null,{"$f":"IF(Forside!$J$9=4,CB5,BX5)","v":0},{"$f":"IF(Forside!$J$9=4,CC5,BY5)","v":0},{"$f":"IF(Forside!$J$9=4,CD5,BZ5)","v":0},{"$f":"IF(Forside!$J$9=4,CE5,CA5)","v":0},null,{"$f":"IF(BW$64<=$CC$32,BX22,IF(AND(BW$64>$CC$32,BW$64<=$CC$33),BY22,IF(AND(BW$64>$CC$33,BW$64<=$CC$34),BZ22,IF(BW$64>$CC$34,CA22,\"FEJL\"))))","v":0},null,null,null,"Bund Ribbe1",{"$f":"IF(J14=\"\",G8,G8)","v":0.2},0,null,null,{"$f":"CL21","v":1.7},{"$f":"J15+L15","v":2.1},null,null,{"$f":"CP21","v":5.6000000000000005},{"$f":"CQ21+L18+L18+J18","v":3.1},null,null,null,null,null,null,null,null,null,null,null,null,null,null,null,null,null,null,null,"1. lag","Forstøbning",null,{"$f":"Materialer!$H17","v":0},"",{"$f":"Materialer!$I17","v":0},"",{"$f":"Materialer!$E17","v":0},"",{"$f":"Materialer!$F17","v":0},"",{"$f":"Materialer!$E17","v":0},"",{"$f":"Materialer!$F17","v":0},"",{"$f":"Materialer!$E17","v":0},"",{"$f":"Materialer!$F17","v":0},"",{"$f":"Materialer!$B17","v":0},"",{"$f":"Materialer!$C17","v":0},"",null,{"$f":"Materialer!$B17","v":0},{"$f":"Materialer!$C17","v":0},{"$f":"Materialer!$E17","v":0},{"$f":"Materialer!$F17","v":0},{"$f":"Materialer!$H17","v":0},{"$f":"Materialer!$I17","v":0},null,null,null,null,null,9.8000000000000007,0,null,null,null,1.6,0.2,null,null,null,6.8,0.4,null,null,null,4.4000000000000004,1.5,null,null,"Øverste vindue","Ribbe",{"$f":"MAX(FG19,FG30,FG41,FG52,FG63)","v":0},{"$f":"IF(FO23>0,FO22,\"\")","v":""},{"$f":"IF(FO23>0,F33,\"\")","v":""},null,null,null,null,null,null,null,null,null,null,null,null,"","","","","",""]
[null,"Bagstøbning",null,null,null,0.15,{"$f":"BW69","v":2.44},null,null,0.5,0.5,null,4.4000000000000004,1.5,{"$f":"BH86","v":"Ophængsbøjler"},null,{"$f":"BO86","v":0.32155562559980411},null,null,null,null,null,null,null,null,null,null,null,null,null,null,null,null,null,null,null,null,null,null,null,null,null,null,null,null,null,null,null,null,null,null,null,null,null,"ƩR",{"$f":"SUM(BD18:BD22)","v":7.0267954814243696},{"$f":"BW45+BW46+BW47+BW48","v":5.3600000000000012},{"$f":"1/BD23","v":0.14231238160318488},null,"Y-aksen 2",{"$f":"IF(BI20<BI8,BM14,IF(AND(BI20>=BI8,BI20<BI9),BM15,IF(AND(BI20>=BI9,BI20<BI10),BM16,IF(BI20>=BI10,BM17,\"FEJL\"))))","v":1.0999999999999999E-2},null,null,null,null,null,"Y-aksen 2",{"$f":"IF(BP20<BP8,BT14,IF(AND(BP20>=BP8,BP20<BP9),BT15,IF(AND(BP20>=BP9,BP20<BP10),BT16,IF(BP20>=BP10,BT17,\"FEJL\"))))","v":1.0999999999999999E-2},null,null,null,null,null,"Rustfast stål",3,{"$f":"IF(Forside!$J$9=4,CB6,BX6)","v":4.0000000000000001E-3},{"$f":"IF(Forside!$J$9=4,CC6,BY6)","v":4.0000000000000001E-3},{"$f":"IF(Forside!$J$9=4,CD6,BZ6)","v":3.0000000000000001E-3},{"$f":"IF(Forside!$J$9=4,CE6,CA6)","v":3.0000000000000001E-3},null,{"$f":"IF(BW$64<=$CC$32,BX23,IF(AND(BW$64>$CC$32,BW$64<=$CC$33),BY23,IF(AND(BW$64>$CC$33,BW$64<=$CC$34),BZ23,IF(BW$64>$CC$34,CA23,\"FEJL\"))))","v":3.0000000000000001E-3},null,null,null,null,{"$f":"CH22","v":0.2},{"$f":"G11","v":0.2},null,null,{"$f":"CL22+L15+L15+K15","v":2.9000000000000004},{"$f":"CM22","v":2.1},null,null,{"$f":"CP22+L18+L18+K18","v":6.8},{"$f":"CQ22","v":3.1},null,null,null,null,null,null,null,null,null,null,null,null,null,null,null,null,null,null,null,"2. lag","Isolering",null,{"$f":"Materialer!$H18","v":0},"",{"$f":"Materialer!$I18","v":0},"",{"$f":"Materialer!$E18","v":0},"",{"$f":"Materialer!$F18","v":0},"",{"$f":"Materialer!$E18","v":0},"",{"$f":"Materialer!$F18","v":0},"",{"$f":"Materialer!$E18","v":0},"",{"$f":"Materialer!$F18","v":0},"",{"$f":"Materialer!$B18","v":0},"",{"$f":"Materialer!$C18","v":0},"",null,{"$f":"Materialer!$B18","v":0},{"$f":"Materialer!$C18","v":0},{"$f":"Materialer!$E18","v":0},{"$f":"Materialer!$F18","v":0},{"$f":"Materialer!$H18","v":0},{"$f":"Materialer!$I18","v":0},null,null,null,null,null,9.6000000000000014,0,null,null,null,null,null,null,null,null,5.6000000000000005,0.4,null,null,"Forstærkning 3",4.4000000000000004,2.5,{"$f":"IF(MAX(FI23:FI27)>=$V$6,1,0)*IF(MIN(FI23:FI27)<=$V$6,1,0)","v":0},{"$f":"IF($FK$23>0,FJ23,\"\")","v":""},null,"Bund ",{"$f":"MAX(FG13,FG24,FG35,FG46,FG57)","v":0},{"$f":"IF(FO23>0,FO23,\"\")","v":""},null,null,null,null,null,null,null,null,null,null,null,null,null,"","","","","",""]
[null,"Konstruktion af ribbe omkring dør",null,null,null,"d","λ",null,null,0.5,0.5,null,4.4000000000000004,2.5,{"$f":"BH87","v":"Murbindere"},null,{"$f":"BO87","v":4.6271697391242013},null,null,null,null,null,null,null,null,null,null,null,null,null,null,null,null,null,null,null,null,null,null,null,null,null,null,null,null,null,null,null,null,null,null,null,{"$f":"B24","v":"Konstruktion af ribbe omkring dør"},null,null,null,null,null,null,"Y12",{"$f":"IF(BI22=BI23,BI22,BI22+((BI23-BI22)*((F22-BI$26)/(BI$27-BI$26))))","v":1.0999999999999999E-2},null,null,null,null,null,"Y12",{"$f":"IF(BP22=BP23,BP22,BP22+((BP23-BP22)*((F27-BP$26)/(BP$27-BP$26))))","v":1.0999999999999999E-2},null,null,null,null,null,"Rustfast stål",4,{"$f":"IF(Forside!$J$9=4,CB7,BX7)","v":8.0000000000000002E-3},{"$f":"IF(Forside!$J$9=4,CC7,BY7)","v":7.0000000000000001E-3},{"$f":"IF(Forside!$J$9=4,CD7,BZ7)","v":6.0000000000000001E-3},{"$f":"IF(Forside!$J$9=4,CE7,CA7)","v":5.0000000000000001E-3},null,5.0000000000000001E-3,null,null,null,null,{"$f":"IF(J14=\"\",D8-G9,M14)","v":0.5},{"$f":"CI23","v":0.2},null,null,{"$f":"CL23","v":2.9000000000000004},{"$f":"CM21","v":0.2},null,null,{"$f":"CP23","v":6.8},{"$f":"CQ21","v":1.9},null,null,null,null,null,null,null,null,null,null,null,null,null,null,null,null,null,null,null,"3. lag","Isolering",null,{"$f":"Materialer!$H19","v":0},"",{"$f":"Materialer!$I19","v":0},"",{"$f":"Materialer!$E19","v":0},"",{"$f":"Materialer!$F19","v":0},"",{"$f":"Materialer!$E19","v":0},"",{"$f":"Materialer!$F19","v":0},"",{"$f":"Materialer!$E19","v":0},"",{"$f":"Materialer!$F19","v":0},"",{"$f":"Materialer!$B19","v":0},"",{"$f":"Materialer!$C19","v":0},"",null,{"$f":"Materialer!$B19","v":0},{"$f":"Materialer!$C19","v":0},{"$f":"Materialer!$E19","v":0},{"$f":"Materialer!$F19","v":0},{"$f":"Materialer!$H19","v":0},{"$f":"Materialer!$I19","v":0},null,null,null,null,null,null,null,null,null,"Dør2",{"$f":"CL15","v":1.8},0,{"$f":"IF(MAX(EY24:EY28)>$V$6,1,0)*IF(MIN(EY24:EY28)<$V$6,1,0)","v":0},null,"Vindue2",5.7,2,{"$f":"IF(MAX(FD24:FD28)>$V$6,1,0)*IF(MIN(FD24:FD28)<$V$6,1,0)","v":0},{"$f":"IF($FF$24>0,FE24,\"\")","v":""},null,4.4000000000000004,3,null,{"$f":"IF($FK$23>0,FJ24,\"\")","v":""},null,"Top",{"$f":"MAX(FG14,FG25,FG36,FG47,FG58)","v":0},{"$f":"IF(FO24>0,FO24,\"\")","v":""},null,null,null,null,null,null,null,null,null,null,null,null,null,"","","","","",""]
[null,null,null,null,null,"[m]","[W/mK]",null,null,null,null,null,null,null,null,null,null,null,null,null,null,null,null,null,null,null,null,null,null,null,null,null,null,null,null,null,null,null,null,null,null,null,null,null,null,null,null,null,null,null,null,null,"Indvendig overgangsisolans",null,null,{"$f":"BD6","v":0.13},null,null,null,null,null,null,null,null,null,null,null,null,null,null,null,null,null,"Rustfast stål",5.5,{"$f":"IF(Forside!$J$9=4,CB8,BX8)","v":1.4E-2},{"$f":"IF(Forside!$J$9=4,CC8,BY8)","v":1.2999999999999999E-2},{"$f":"IF(Forside!$J$9=4,CD8,BZ8)","v":1.0999999999999999E-2},{"$f":"IF(Forside!$J$9=4,CE8,CA8)","v":8.9999999999999993E-3},null,8.9999999999999993E-3,null,null,null,null,{"$f":"CH24","v":0.5},{"$f":"CI22","v":0},null,null,null,null,null,null,{"$f":"CP21","v":5.6000000000000005},{"$f":"CQ21","v":1.9},null,null,null,null,null,null,null,null,null,null,null,null,null,null,null,null,null,null,null,"4. lag","Isolering",null,{"$f":"Materialer!$H20","v":0},"",{"$f":"Materialer!$I20","v":0},"",{"$f":"Materialer!$E20","v":0},"",{"$f":"Materialer!$F20","v":0},"",{"$f":"Materialer!$E20","v":0},"",{"$f":"Materialer!$F20","v":0},"",{"$f":"Materialer!$E20","v":0},"",{"$f":"Materialer!$F20","v":0},"",{"$f":"Materialer!$B20","v":0},"",{"$f":"Materialer!$C20","v":0},"",null,{"$f":"Materialer!$B20","v":0},{"$f":"Materialer!$C20","v":0},{"$f":"Materialer!$E20","v":0},{"$f":"Materialer!$F20","v":0},{"$f":"Materialer!$H20","v":0},{"$f":"Materialer!$I20","v":0},null,null,null,null,"Top Ribbe",{"$f":"CH16","v":0.2},3.8,{"$f":"IF(MAX(ET25:ET29)>=$V$6,1,0)*IF(MIN(ET25:ET29)<=$V$6,1,0)","v":1},null,null,1.8,2,null,null,null,5.7,3,null,{"$f":"IF($FF$24>0,FE25,\"\")","v":""},null,4.9000000000000004,3,null,{"$f":"IF($FK$13>0,FJ25,\"\")","v":""},null,"Ribbe",{"$f":"MAX(FG20,FG31,FG42,FG53,FG64)","v":0},{"$f":"IF(FO25>0,FO25,\"\")","v":""},null,null,null,null,null,null,null,null,null,null,null,null,null,"","","","","",""]
[null,"Forstøbning",null,null,null,{"$f":"BW67","v":0.1},{"$f":"G14","v":"2,54"},null,null,null,null,null,null,null,null,null,null,null,null,null,null,null,null,null,null,null,null,null,null,null,null,null,null,null,null,null,null,null,null,null,null,null,null,null,null,null,null,null,null,null,null,null,{"$f":"B26","v":"Forstøbning"},{"$f":"F28","v":0.15},{"$f":"G26","v":"2,54"},{"$f":"IF(BB26=0, 0, IF(BC26=0, 0, BB26/BC26))","v":5.905511811023622E-2},null,null,null,"X-aksen 1",{"$f":"BI21","v":0.1},null,null,null,null,null,"X-aksen 1",{"$f":"BP21","v":0.1},null,null,null,null,null,"Bronze",3,{"$f":"IF(Forside!$J$9=4,CB9,BX9)","v":1.6E-2},{"$f":"IF(Forside!$J$9=4,CC9,BY9)","v":1.4E-2},{"$f":"IF(Forside!$J$9=4,CD9,BZ9)","v":1.2999999999999999E-2},{"$f":"IF(Forside!$J$9=4,CE9,CA9)","v":1.0999999999999999E-2},null,1.0999999999999999E-2,null,null,null,null,{"$f":"CH22","v":0.2},{"$f":"CI22","v":0},null,"Dør3",{"$f":"M16","v":3.1},{"$f":"CK29","v":0},null,"Vindue3",{"$f":"M19","v":7},{"$f":"N19+CO29","v":0.5},null,null,null,null,null,null,null,null,null,null,null,null,null,null,null,null,null,null,null,"5. lag","Bagstøbning",null,{"$f":"Materialer!$H21","v":0},"",{"$f":"Materialer!$I21","v":0},"",{"$f":"Materialer!$E21","v":0},"",{"$f":"Materialer!$F21","v":0},"",{"$f":"Materialer!$E21","v":0},"",{"$f":"Materialer!$F21","v":0},"",{"$f":"Materialer!$E21","v":0},"",{"$f":"Materialer!$F21","v":0},"",{"$f":"Materialer!$B21","v":0},"",{"$f":"Materialer!$C21","v":0},"",null,{"$f":"Materialer!$B21","v":0},{"$f":"Materialer!$C21","v":0},{"$f":"Materialer!$E21","v":0},{"$f":"Materialer!$F21","v":0},{"$f":"Materialer!$H21","v":0},{"$f":"Materialer!$I21","v":0},null,null,null,null,null,0.2,4,null,null,null,2.8,2,null,null,null,6.7,3,null,null,null,4.9000000000000004,2.5,null,{"$f":"IF($FK$13>0,FJ26,\"\")","v":""},"Nederste vindue","Ribbe",{"$f":"MIN(FG19,FG30,FG41,FG52,FG63)","v":0},{"$f":"IF(FO27>0,FO26,\"\")","v":""},{"$f":"IF(FO27>0,F33,\"\")","v":""},null,null,null,null,null,null,null,null,null,null,null,null,"","","","","",""]
[null,"Isolering",null,null,null,{"$f":"$D$10-F28-F26","v":0.24999999999999997},{"$f":"SUM($GG$14:$GG$44)","v":3.6999999999999998E-2},null,null,null,null,null,null,null,null,null,null,null,null,null,null,null,null,null,null,null,null,null,null,null,null,null,null,null,null,null,null,null,null,null,null,null,null,null,null,null,null,null,null,null,null,null,{"$f":"B27","v":"Isolering"},0.24999999999999997,3.6999999999999998E-2,{"$f":"IF(BB27=0, 0, IF(BC27=0, 0, BB27/BC27))","v":6.7567567567567561},null,null,null,"X-aksen 2",{"$f":"BI14","v":0.1},null,null,null,null,null,"X-aksen 2",{"$f":"BP14","v":0.1},null,null,null,null,null,"Bronze",4,{"$f":"IF(Forside!$J$9=4,CB10,BX10)","v":2.9000000000000001E-2},{"$f":"IF(Forside!$J$9=4,CC10,BY10)","v":2.5999999999999999E-2},{"$f":"IF(Forside!$J$9=4,CD10,BZ10)","v":2.3E-2},{"$f":"IF(Forside!$J$9=4,CE10,CA10)","v":1.9E-2},null,1.9E-2,null,null,null,null,null,null,null,null,{"$f":"CL26","v":3.1},{"$f":"CM26+J16","v":2},null,null,{"$f":"CP26","v":7},{"$f":"CQ26+J19","v":1.5},null,null,null,null,null,null,null,null,null,null,null,null,null,null,null,null,null,null,null,null,null,null,{"$f":"Materialer!$H22","v":0},"",{"$f":"Materialer!$I22","v":0},"",{"$f":"Materialer!$E22","v":0},"",{"$f":"Materialer!$F22","v":0},"",{"$f":"Materialer!$E22","v":0},"",{"$f":"Materialer!$F22","v":0},"",{"$f":"Materialer!$E22","v":0},"",{"$f":"Materialer!$F22","v":0},"",{"$f":"Materialer!$B22","v":0},"",{"$f":"Materialer!$C22","v":0},"",null,{"$f":"Materialer!$B22","v":0},{"$f":"Materialer!$C22","v":0},{"$f":"Materialer!$E22","v":0},{"$f":"Materialer!$F22","v":0},{"$f":"Materialer!$H22","v":0},{"$f":"Materialer!$I22","v":0},null,null,null,null,null,9.6000000000000014,4,null,null,null,2.8,0,null,null,null,6.7,2,null,null,null,4.4000000000000004,2.5,null,{"$f":"IF($FK$13>0,FJ27,\"\")","v":""},null,"Bund ",{"$f":"MIN(FG13,FG24,FG35,FG46,FG57)","v":0},{"$f":"IF(FO27>0,FO27,\"\")","v":""},null,null,null,null,null,null,null,null,null,null,null,null,null,"","","","","",""]
[null,"Bagstøbning",null,null,null,0.15,{"$f":"BW69","v":2.44},null,null,null,null,null,null,null,null,null,null,null,null,null,null,null,null,null,null,null,null,null,null,null,null,null,null,null,null,null,null,null,null,null,null,null,null,null,null,null,null,null,null,null,null,null,{"$f":"B28","v":"Bagstøbning"},{"$f":"F26","v":0.1},2.44,{"$f":"IF(BB28=0, 0, IF(BC28=0, 0, BB28/BC28))","v":4.0983606557377053E-2},null,null,null,null,null,null,null,null,null,null,null,null,null,null,null,null,null,"Bronze",5,{"$f":"IF(Forside!$J$9=4,CB11,BX11)","v":4.4999999999999998E-2},{"$f":"IF(Forside!$J$9=4,CC11,BY11)","v":0.04},{"$f":"IF(Forside!$J$9=4,CD11,BZ11)","v":3.5999999999999997E-2},{"$f":"IF(Forside!$J$9=4,CE11,CA11)","v":0.03},null,0.03,null,null,null,"Bund Ribbe2",{"$f":"IF(J14=\"\",0,M14+K14)","v":1.5},0,null,"Tillæg til dør1",{"$f":"CL27+K16","v":4.0999999999999996},{"$f":"CM27","v":2},null,"Tillæg til dør1",{"$f":"CP27+K19","v":8},{"$f":"CQ27","v":1.5},null,null,null,null,null,null,null,null,null,null,null,null,null,null,null,null,null,null,null,null,null,null,{"$f":"Materialer!$H23","v":0},"",{"$f":"Materialer!$I23","v":0},"",{"$f":"Materialer!$E23","v":0},"",{"$f":"Materialer!$F23","v":0},"",{"$f":"Materialer!$E23","v":0},"",{"$f":"Materialer!$F23","v":0},"",{"$f":"Materialer!$E23","v":0},"",{"$f":"Materialer!$F23","v":0},"",{"$f":"Materialer!$B23","v":0},"",{"$f":"Materialer!$C23","v":0},"",null,{"$f":"Materialer!$B23","v":0},{"$f":"Materialer!$C23","v":0},{"$f":"Materialer!$E23","v":0},{"$f":"Materialer!$F23","v":0},{"$f":"Materialer!$H23","v":0},{"$f":"Materialer!$I23","v":0},null,null,null,null,null,9.6000000000000014,3.8,null,null,null,1.8,0,null,null,null,5.7,2,null,null,null,null,null,null,null,null,"Top",{"$f":"MIN(FG14,FG25,FG36,FG47,FG58)","v":0},"",null,null,null,null,null,null,null,null,null,null,null,null,null,"","","","","",""]
[null,"Konstruktion af ribbe omkring vindue",null,null,null,"d","λ",null,null,null,null,null,null,null,null,null,null,null,null,null,null,null,null,null,null,null,null,null,null,null,null,null,null,null,null,null,null,null,null,null,null,null,null,null,null,null,null,null,null,null,null,null,"Udvendig overgangsisolans",null,null,{"$f":"BD22","v":0.04},null,null,null,null,null,null,null,null,null,null,null,null,null,null,null,null,null,"Forzinket jern",8,{"$f":"IF(Forside!$J$9=4,CB12,BX12)","v":9.7000000000000003E-2},{"$f":"IF(Forside!$J$9=4,CC12,BY12)","v":8.6999999999999994E-2},{"$f":"IF(Forside!$J$9=4,CD12,BZ12)","v":7.8E-2},{"$f":"IF(Forside!$J$9=4,CE12,CA12)","v":6.4000000000000001E-2},null,6.4000000000000001E-2,null,null,null,null,{"$f":"CH28","v":1.5},{"$f":"IF(J14=\"\",0,G11)","v":0.2},null,null,{"$f":"CL28","v":4.0999999999999996},{"$f":"CM26","v":0},null,null,{"$f":"CP28","v":8},{"$f":"CQ26","v":0.5},null,null,null,null,null,null,null,null,null,null,null,null,null,null,null,null,null,null,null,null,null,null,{"$f":"Materialer!$H24","v":0},"",{"$f":"Materialer!$I24","v":0},"",{"$f":"Materialer!$E24","v":0},"",{"$f":"Materialer!$F24","v":0},"",{"$f":"Materialer!$E24","v":0},"",{"$f":"Materialer!$F24","v":0},"",{"$f":"Materialer!$E24","v":0},"",{"$f":"Materialer!$F24","v":0},"",{"$f":"Materialer!$B24","v":0},"",{"$f":"Materialer!$C24","v":0},"",null,{"$f":"Materialer!$B24","v":0},{"$f":"Materialer!$C24","v":0},{"$f":"Materialer!$E24","v":0},{"$f":"Materialer!$F24","v":0},{"$f":"Materialer!$H24","v":0},{"$f":"Materialer!$I24","v":0},null,null,null,null,null,0.2,3.8,null,null,null,null,null,null,null,null,null,null,null,null,null,"Forstærkninger i snit?",null,{"$f":"FK23+FK18+FK13","v":0},null,null,"Ribbe",{"$f":"MIN(FG20,FG31,FG42,FG53,FG64)","v":0},"",null,null,null,null,null,null,null,null,null,null,null,null,null,"","","","","",""]
[null,null,null,null,null,"[m]","[W/mK]",null,null,null,null,null,null,null,null,null,null,null,null,null,null,null,null,null,null,null,null,null,null,null,null,null,null,null,null,null,null,null,null,null,null,null,null,null,null,null,null,null,null,null,null,null,null,null,"ƩR",{"$f":"SUM(BD25:BD29)","v":7.0267954814243696},{"$f":"BW50","v":1.56},{"$f":"1/BD30","v":0.14231238160318488},null,null,null,null,null,null,null,null,null,null,null,null,null,null,null,null,null,null,null,null,null,null,null,null,null,null,null,{"$f":"IF(J14=\"\",0,IF(J15=\"\",D8-G9,M15))","v":1.8},{"$f":"CI29","v":0.2},null,null,{"$f":"CL26","v":3.1},{"$f":"CM26","v":0},null,null,{"$f":"CP26","v":7},{"$f":"CQ26","v":0.5},null,null,null,null,null,null,null,null,null,null,null,null,null,null,null,null,null,null,null,null,null,null,{"$f":"Materialer!$H25","v":0},"",{"$f":"Materialer!$I25","v":0},"",{"$f":"Materialer!$E25","v":0},"",{"$f":"Materialer!$F25","v":0},"",{"$f":"Materialer!$E25","v":0},"",{"$f":"Materialer!$F25","v":0},"",{"$f":"Materialer!$E25","v":0},"",{"$f":"Materialer!$F25","v":0},"",{"$f":"Materialer!$B25","v":0},"",{"$f":"Materialer!$C25","v":0},"",null,{"$f":"Materialer!$B25","v":0},{"$f":"Materialer!$C25","v":0},{"$f":"Materialer!$E25","v":0},{"$f":"Materialer!$F25","v":0},{"$f":"Materialer!$H25","v":0},{"$f":"Materialer!$I25","v":0},null,null,null,null,null,null,null,null,null,"Rib om dør2",{"$f":"CL21","v":1.7},0.2,{"$f":"IF(MAX(EY30:EY34)>=$V$6,1,0)*IF(MIN(EY30:EY34)<=$V$6,1,0)","v":0},null,"Rib om vindue2",{"$f":"CP21","v":5.6000000000000005},{"$f":"CQ21","v":1.9},{"$f":"IF(MAX(FD30:FD34)>=$V$6,1,0)*IF(MIN(FD30:FD34)<=$V$6,1,0)","v":0},{"$f":"IF($FF$30>0,FE30,\"\")","v":""},null,null,null,null,null,"Øverste forstærkning","Top ",{"$f":"MAX(FL24,FL19,FL14)","v":0},"",{"$f":"IF(FO30>0,F38,\"\")","v":""},null,null,null,null,null,null,null,null,null,null,null,null,"","","","","",""]
[null,"Forstøbning",null,null,null,{"$f":"BW67","v":0.1},{"$f":"G14","v":"2,54"},null,null,null,null,null,null,null,null,null,null,null,null,null,null,null,null,null,null,null,null,null,null,null,null,null,null,null,null,null,null,null,null,null,null,null,null,null,null,null,null,null,null,null,null,null,{"$f":"B29","v":"Konstruktion af ribbe omkring vindue"},null,null,null,null,null,null,null,null,null,null,null,null,null,null,null,null,null,null,null,null,"Dropdown",null,null,null,null,null,null,"Grænser",null,null,null,null,{"$f":"CH30","v":1.8},{"$f":"CI28","v":0},null,null,null,null,null,null,null,null,null,null,null,null,null,null,null,null,null,null,null,null,null,null,null,null,null,null,null,null,null,null,{"$f":"Materialer!$H26","v":0},"",{"$f":"Materialer!$I26","v":0},"",{"$f":"Materialer!$E26","v":0},"",{"$f":"Materialer!$F26","v":0},"",{"$f":"Materialer!$E26","v":0},"",{"$f":"Materialer!$F26","v":0},"",{"$f":"Materialer!$E26","v":0},"",{"$f":"Materialer!$F26","v":0},"",{"$f":"Materialer!$B26","v":0},"",{"$f":"Materialer!$C26","v":0},"",null,{"$f":"Materialer!$B26","v":0},{"$f":"Materialer!$C26","v":0},{"$f":"Materialer!$E26","v":0},{"$f":"Materialer!$F26","v":0},{"$f":"Materialer!$H26","v":0},{"$f":"Materialer!$I26","v":0},null,null,null,null,"Bund Ribbe1",{"$f":"CH22","v":0.2},0,{"$f":"IF(MAX(ET31:ET35)>=$V$6,1,0)*IF(MIN(ET31:ET35)<=$V$6,1,0)","v":0},null,null,1.7,2.1,null,null,null,5.6000000000000005,3.1,null,{"$f":"IF($FF$30>0,FE31,\"\")","v":""},null,null,null,null,null,null,"Bund ",{"$f":"MAX(FL23,FL18,FL13)","v":0},"",null,null,null,null,null,null,null,null,null,null,null,null,null,"","","","","",""]
[null,"Isolering",null,null,null,{"$f":"$D$10-F33-F31","v":0.24999999999999997},{"$f":"SUM($GH$14:$GH$44)","v":3.6999999999999998E-2},null,null,null,null,null,null,null,null,null,null,null,null,null,null,null,null,null,null,null,null,null,null,null,null,null,null,null,null,null,null,null,null,null,null,null,null,null,null,null,null,null,null,null,null,null,"Indvendig overgangsisolans",null,null,{"$f":"BD6","v":0.13},null,null,null,"Ψ",{"$f":"IF(F22>0.1,0,IF(BI13=BI20,BI17,(BI24*(BI13-BW$64)+BI17*(BW$64-BI20))/(BI13-BI20)))","v":0},null,null,null,null,null,"Ψ",{"$f":"IF(F27>0.1,0,IF(BP13=BP20,BP17,(BP24*(BP13-BW$64)+BP17*(BW$64-BP20))/(BP13-BP20)))","v":0},null,null,null,null,null,null,null,null,null,null,null,null,{"$f":"(BX21+BY21)/2","v":0.1125},null,null,null,null,{"$f":"CH28","v":1.5},{"$f":"CI28","v":0},null,"Rib om dør3",{"$f":"CL26-L16","v":3},{"$f":"G11","v":0.2},null,"Rib om vindue3",{"$f":"CP26-L19","v":6.9},{"$f":"CQ26-L19","v":0.4},null,null,null,null,null,null,null,null,null,null,null,null,null,null,null,null,null,null,null,null,null,null,{"$f":"Materialer!$H27","v":0},"",{"$f":"Materialer!$I27","v":0},"",{"$f":"Materialer!$E27","v":0},"",{"$f":"Materialer!$F27","v":0},"",{"$f":"Materialer!$E27","v":0},"",{"$f":"Materialer!$F27","v":0},"",{"$f":"Materialer!$E27","v":0},"",{"$f":"Materialer!$F27","v":0},"",{"$f":"Materialer!$B27","v":0},"",{"$f":"Materialer!$C27","v":0},"",null,{"$f":"Materialer!$B27","v":0},{"$f":"Materialer!$C27","v":0},{"$f":"Materialer!$E27","v":0},{"$f":"Materialer!$F27","v":0},{"$f":"Materialer!$H27","v":0},{"$f":"Materialer!$I27","v":0},null,null,null,null,null,0.2,0.2,null,null,null,2.9000000000000004,2.1,null,null,null,6.8,3.1,null,null,null,null,null,null,null,"Nederste forstærkning","Top ",{"$f":"MIN(FL14,FL19,FL24)","v":0},"",{"$f":"IF(FO32>0.1,F38,\"\")","v":""},null,null,null,null,null,null,null,null,null,null,null,null,"","","","","",""]
[null,"Bagstøbning",null,null,null,0.15,{"$f":"BW69","v":2.44},null,null,null,null,null,null,null,null,null,null,null,null,null,null,null,null,null,null,null,null,null,null,null,null,null,null,null,null,null,null,null,null,null,null,null,null,null,null,null,null,null,null,null,null,null,{"$f":"B31","v":"Forstøbning"},{"$f":"F33","v":0.15},{"$f":"G31","v":"2,54"},{"$f":"IF(BB33=0, 0, IF(BC33=0, 0, BB33/BC33))","v":5.905511811023622E-2},null,null,null,null,null,null,null,null,null,null,null,null,null,null,null,null,null,4,"Plast",0,{"$f":"IF(Forside!$J$10=\"Plast\",BX33,\"\")","v":""},null,null,null,{"$f":"(BY21+BZ21)/2","v":0.13750000000000001},null,null,null,null,null,null,null,null,{"$f":"CL32","v":3},{"$f":"J16+L16","v":2.1},null,null,{"$f":"CP32","v":6.9},{"$f":"CQ32+L19+L19+J19","v":1.6},null,null,null,null,null,null,null,null,null,null,null,null,null,null,null,null,null,null,null,null,null,null,{"$f":"Materialer!$H28","v":0},"",{"$f":"Materialer!$I28","v":0},"",{"$f":"Materialer!$E28","v":0},"",{"$f":"Materialer!$F28","v":0},"",{"$f":"Materialer!$E28","v":0},"",{"$f":"Materialer!$F28","v":0},"",{"$f":"Materialer!$E28","v":0},"",{"$f":"Materialer!$F28","v":0},"",{"$f":"Materialer!$B28","v":0},"",{"$f":"Materialer!$C28","v":0},"",null,{"$f":"Materialer!$B28","v":0},{"$f":"Materialer!$C28","v":0},{"$f":"Materialer!$E28","v":0},{"$f":"Materialer!$F28","v":0},{"$f":"Materialer!$H28","v":0},{"$f":"Materialer!$I28","v":0},null,null,null,null,null,0.5,0.2,null,null,null,2.9000000000000004,0.2,null,null,null,6.8,1.9,null,null,null,null,null,null,null,null,"Bund ",{"$f":"MIN(FL13,FL18,FL23)","v":0},"",null,null,null,null,null,null,null,null,null,null,null,null,null,"","","","","",""]
[null,"Konstruktion af forstærkning",null,null,null,"d","λ",null,null,null,null,null,null,null,null,null,null,null,null,null,null,null,null,null,null,null,null,null,null,null,null,null,null,null,null,null,null,null,null,null,null,null,null,null,null,null,null,null,null,null,null,null,{"$f":"B32","v":"Isolering"},0.24999999999999997,3.6999999999999998E-2,{"$f":"IF(BB34=0, 0, IF(BC34=0, 0, BB34/BC34))","v":6.7567567567567561},null,null,null,"Ribbe omkring vindue",null,null,null,null,null,null,"Ribbe omkring forstrækning",null,null,null,null,null,null,8,"Rustfast stål",3,{"$f":"IF(Forside!$J$10=\"Rustfast stål\",BX34,IF(Forside!$J$10=\"Bronze\",BX34,\"\"))","v":3},null,null,null,{"$f":"(BZ21+CA21)/2","v":0.17499999999999999},null,null,null,"Bund Ribbe3",{"$f":"IF(J14=\"\",0,IF(J15=\"\",0,M15+K15))","v":2.8},0,null,null,{"$f":"CL33+L16+L16+K16","v":4.2},{"$f":"CM33","v":2.1},null,null,{"$f":"CP33+L19+L19+K19","v":8.1},{"$f":"CQ33","v":1.6},null,null,null,null,null,null,null,null,null,null,null,null,null,null,null,null,null,null,null,null,null,null,{"$f":"Materialer!$H29","v":0},"",{"$f":"Materialer!$I29","v":0},"",{"$f":"Materialer!$E29","v":0},"",{"$f":"Materialer!$F29","v":0},"",{"$f":"Materialer!$E29","v":0},"",{"$f":"Materialer!$F29","v":0},"",{"$f":"Materialer!$E29","v":0},"",{"$f":"Materialer!$F29","v":0},"",{"$f":"Materialer!$B29","v":0},"",{"$f":"Materialer!$C29","v":0},"",null,{"$f":"Materialer!$B29","v":0},{"$f":"Materialer!$C29","v":0},{"$f":"Materialer!$E29","v":0},{"$f":"Materialer!$F29","v":0},{"$f":"Materialer!$H29","v":0},{"$f":"Materialer!$I29","v":0},null,null,null,null,null,0.5,0,null,null,null,null,null,null,null,null,5.6000000000000005,1.9,null,null,null,null,null,null,null,{"$f":"BV66","v":"Bagstøbningstykkelse"},null,null,null,{"$f":"BW66","v":0.1},null,null,null,null,null,null,null,null,null,null,null,null,"","","","","",""]
[null,null,null,null,null,"[m]","[W/mK]",null,null,null,null,null,null,null,null,null,null,null,null,null,null,null,null,null,null,null,null,null,null,null,null,null,null,null,null,null,null,null,null,null,null,null,null,null,null,null,null,null,null,null,null,null,{"$f":"B33","v":"Bagstøbning"},{"$f":"F31","v":0.1},2.44,{"$f":"IF(BB35=0, 0, IF(BC35=0, 0, BB35/BC35))","v":4.0983606557377053E-2},null,null,null,null,null,null,null,null,null,null,null,null,null,null,null,null,null,null,"Bronze",4,{"$f":"IF(Forside!$J$10=\"Rustfast stål\",BX35,IF(Forside!$J$10=\"Bronze\",BX35,\"\"))","v":4},null,null,null,null,null,null,null,null,{"$f":"CH34","v":2.8},{"$f":"IF(J14=\"\",0,IF(J15=\"\",0,G11))","v":0.2},null,null,{"$f":"CL34","v":4.2},{"$f":"CM32","v":0.2},null,null,{"$f":"CP34","v":8.1},{"$f":"CQ32","v":0.4},null,null,null,null,null,null,null,null,null,null,null,null,null,null,null,null,null,null,null,null,null,null,{"$f":"Materialer!$H30","v":0},"",{"$f":"Materialer!$I30","v":0},"",{"$f":"Materialer!$E30","v":0},"",{"$f":"Materialer!$F30","v":0},"",{"$f":"Materialer!$E30","v":0},"",{"$f":"Materialer!$F30","v":0},"",{"$f":"Materialer!$E30","v":0},"",{"$f":"Materialer!$F30","v":0},"",{"$f":"Materialer!$B30","v":0},"",{"$f":"Materialer!$C30","v":0},"",null,{"$f":"Materialer!$B30","v":0},{"$f":"Materialer!$C30","v":0},{"$f":"Materialer!$E30","v":0},{"$f":"Materialer!$F30","v":0},{"$f":"Materialer!$H30","v":0},{"$f":"Materialer!$I30","v":0},null,null,null,null,null,0.2,0,null,null,"Dør3",{"$f":"CL26","v":3.1},0,{"$f":"IF(MAX(EY35:EY39)>$V$6,1,0)*IF(MIN(EY35:EY39)<$V$6,1,0)","v":0},null,"Vindue3",7,0.5,{"$f":"IF(MAX(FD35:FD39)>$V$6,1,0)*IF(MIN(FD35:FD39)<$V$6,1,0)","v":0},{"$f":"IF($FF$35>0,FE35,\"\")","v":""},null,null,null,null,null,{"$f":"BV64","v":"Isoleringstykkelse"},null,null,null,{"$f":"BW64","v":0.30000000000000004},null,null,null,null,null,null,null,null,null,null,null,null,"","","","","",""]
[null,"Forstøbning",null,null,null,{"$f":"BW67","v":0.1},{"$f":"G14","v":"2,54"},null,null,null,null,null,null,null,null,null,null,null,null,null,null,null,null,null,null,null,null,null,null,null,null,null,null,null,null,null,null,null,null,null,null,null,null,null,null,null,null,null,null,null,null,null,"Udvendig overgangsisolans",null,null,{"$f":"BD12","v":0.04},null,null,null,null,null,null,null,null,null,null,null,null,null,null,null,null,null,null,"Forzinket jern",5,{"$f":"IF(Forside!$J$10=\"Bronze\",BX36,\"\")","v":5},null,null,null,null,null,null,null,null,{"$f":"IF(J14=\"\",0,IF(J15=\"\",0,IF(J16=\"\",D8-G9,M16)))","v":3.1},{"$f":"CI35","v":0.2},null,null,null,null,null,null,{"$f":"CP32","v":6.9},{"$f":"CQ32","v":0.4},null,null,null,null,null,null,null,null,null,null,null,null,null,null,null,null,null,null,null,null,null,null,{"$f":"Materialer!$H31","v":0},"",{"$f":"Materialer!$I31","v":0},"",{"$f":"Materialer!$E31","v":0},"",{"$f":"Materialer!$F31","v":0},"",{"$f":"Materialer!$E31","v":0},"",{"$f":"Materialer!$F31","v":0},"",{"$f":"Materialer!$E31","v":0},"",{"$f":"Materialer!$F31","v":0},"",{"$f":"Materialer!$B31","v":0},"",{"$f":"Materialer!$C31","v":0},"",null,{"$f":"Materialer!$B31","v":0},{"$f":"Materialer!$C31","v":0},{"$f":"Materialer!$E31","v":0},{"$f":"Materialer!$F31","v":0},{"$f":"Materialer!$H31","v":0},{"$f":"Materialer!$I31","v":0},null,null,null,null,null,null,null,null,null,null,3.1,2,null,null,null,7,1.5,null,{"$f":"IF($FF$35>0,FE36,\"\")","v":""},null,null,null,null,null,{"$f":"BV67","v":"Forstøbningstykkelse"},null,null,null,{"$f":"BW67","v":0.1},null,null,null,null,null,null,null,null,null,null,null,null,"","","","","",""]
[null,"Isolering",null,null,null,{"$f":"$D$10-F38-F36","v":0.24999999999999997},{"$f":"SUM($GI$14:$GI$44)","v":3.6999999999999998E-2},null,null,null,null,null,null,null,null,null,null,null,null,null,null,null,null,null,null,null,null,null,null,null,null,null,null,null,null,null,null,null,null,null,null,null,null,null,null,null,null,null,null,null,null,null,null,null,"ƩR",{"$f":"SUM(BD32:BD36)","v":7.0267954814243696},{"$f":"BW49","v":2.2000000000000002},{"$f":"1/BD37","v":0.14231238160318488},null,null,null,"Ribbeisolering",null,null,null,null,null,null,"Ribbeisolering",null,null,null,null,null,null,5.5,{"$f":"IF(Forside!$J$10=\"Rustfast stål\",BX37,\"\")","v":""},null,null,"Endelig tillægsværdi",null,null,null,null,null,{"$f":"CH36","v":3.1},{"$f":"CI34","v":0},null,null,null,null,null,"Vindue4",{"$f":"M20","v":7},{"$f":"N20+CO40","v":2},null,null,null,null,null,null,null,null,null,null,null,null,null,null,null,null,null,null,null,null,null,null,{"$f":"Materialer!$H32","v":0},"",{"$f":"Materialer!$I32","v":0},"",{"$f":"Materialer!$E32","v":0},"",{"$f":"Materialer!$F32","v":0},"",{"$f":"Materialer!$E32","v":0},"",{"$f":"Materialer!$F32","v":0},"",{"$f":"Materialer!$E32","v":0},"",{"$f":"Materialer!$F32","v":0},"",{"$f":"Materialer!$B32","v":0},"",{"$f":"Materialer!$C32","v":0},"",null,{"$f":"Materialer!$B32","v":0},{"$f":"Materialer!$C32","v":0},{"$f":"Materialer!$E32","v":0},{"$f":"Materialer!$F32","v":0},{"$f":"Materialer!$H32","v":0},{"$f":"Materialer!$I32","v":0},null,null,null,null,"Bund Ribbe2",{"$f":"CH28","v":1.5},0,{"$f":"IF(MAX(ET37:ET41)>=$V$6,1,0)*IF(MIN(ET37:ET41)<=$V$6,1,0)","v":0},null,null,4.0999999999999996,2,null,null,null,8,1.5,null,null,null,null,null,null,null,null,null,null,null,{"$f":"SUM(FQ34:FQ36)","v":0.5},null,null,null,null,null,null,null,null,null,null,null,null,"","","","","",""]
[null,"Bagstøbning",null,null,null,0.15,{"$f":"BW69","v":2.44},null,null,null,null,null,null,null,null,null,null,null,null,null,null,null,null,null,null,null,null,null,null,null,null,null,null,null,null,null,null,null,null,null,null,null,null,null,null,null,null,null,null,null,null,null,{"$f":"B34","v":"Konstruktion af forstærkning"},null,null,null,null,null,null,null,null,2.5000000000000001E-2,0.05,7.4999999999999997E-2,0.1,null,null,null,2.5000000000000001E-2,0.05,7.4999999999999997E-2,0.1,null,null,null,8,{"$f":"IF(Forside!$J$10=\"Forzinket jern\",BX38,\"\")","v":""},null,null,{"$f":"IF(AND(J10=\"Plast\",J11=0),CC22,IF(AND(J10=\"Rustfast stål\",J11=3),CC23,IF(AND(J10=\"Rustfast stål\",J11=4),CC24,IF(AND(J10=\"Rustfast stål\",J11=5.5),CC25,IF(AND(J10=\"Bronze\",J11=3),CC26,IF(AND(J10=\"Bronze\",J11=4),CC27,IF(AND(J10=\"Bronze\",J11=5),CC28,IF(AND(J10=\"Forzinket jern\",J11=8),CC29,\"Forkert indtastet værdi\"))))))))","v":1.0999999999999999E-2},"W/m²K",null,null,null,null,{"$f":"CH34","v":2.8},{"$f":"CI34","v":0},null,null,null,null,null,null,{"$f":"CP37","v":7},{"$f":"CQ37+J20","v":3},null,null,null,null,null,null,null,null,null,null,null,null,null,null,null,null,null,null,null,null,null,null,{"$f":"Materialer!$H33","v":0},"",{"$f":"Materialer!$I33","v":0},"",{"$f":"Materialer!$E33","v":0},"",{"$f":"Materialer!$F33","v":0},"",{"$f":"Materialer!$E33","v":0},"",{"$f":"Materialer!$F33","v":0},"",{"$f":"Materialer!$E33","v":0},"",{"$f":"Materialer!$F33","v":0},"",{"$f":"Materialer!$B33","v":0},"",{"$f":"Materialer!$C33","v":0},"",null,{"$f":"Materialer!$B33","v":0},{"$f":"Materialer!$C33","v":0},{"$f":"Materialer!$E33","v":0},{"$f":"Materialer!$F33","v":0},{"$f":"Materialer!$H33","v":0},{"$f":"Materialer!$I33","v":0},null,null,null,null,null,1.5,0.2,null,null,null,4.0999999999999996,0,null,null,null,8,0.5,null,null,null,null,null,null,null,null,null,null,null,0,null,null,null,null,null,null,null,null,null,null,null,null,"","","","","",""]
[null,null,null,null,null,"Endelig U-Værdi",null,null,null,null,null,null,null,null,null,null,null,null,null,null,null,null,null,null,null,null,null,null,null,null,null,null,null,null,null,null,null,null,null,null,null,null,null,null,null,null,null,null,null,null,null,null,"Indvendig overgangsisolans",null,null,{"$f":"BD6","v":0.13},null,null,null,"Væg-isolering",0.1,1.7999999999999999E-2,7.0000000000000001E-3,2E-3,0,null,"Væg-isolering",0.1,1.7999999999999999E-2,7.0000000000000001E-3,2E-3,0,null,null,null,null,null,null,null,null,null,null,null,null,null,null,null,null,null,null,null,null,"Tillæg til dør1",{"$f":"CP38+K20","v":8},{"$f":"CQ38","v":3},null,null,null,null,null,null,null,null,null,null,null,null,null,null,null,null,null,null,null,null,null,null,{"$f":"Materialer!$H34","v":0},"",{"$f":"Materialer!$I34","v":0},"",{"$f":"Materialer!$E34","v":0},"",{"$f":"Materialer!$F34","v":0},"",{"$f":"Materialer!$E34","v":0},"",{"$f":"Materialer!$F34","v":0},"",{"$f":"Materialer!$E34","v":0},"",{"$f":"Materialer!$F34","v":0},"",{"$f":"Materialer!$B34","v":0},"",{"$f":"Materialer!$C34","v":0},"",null,{"$f":"Materialer!$B34","v":0},{"$f":"Materialer!$C34","v":0},{"$f":"Materialer!$E34","v":0},{"$f":"Materialer!$F34","v":0},{"$f":"Materialer!$H34","v":0},{"$f":"Materialer!$I34","v":0},null,null,null,null,null,1.8,0.2,null,null,null,3.1,0,null,null,null,7,0.5,null,null,null,null,null,null,null,"Bagstøbning",null,"Bundribbe",null,"Ribbe over øverste vindue",null,"Ribbe over dør",null,"Dørhul",null,"Øverste forstærkning",null,null,null,null,null,null,"","","","","",""]
[null,null,null,null,null,{"$f":"BE55","v":0.1299199725556946},{"$f":"BF55","v":"W/m²K"},null,null,null,null,null,null,null,null,null,null,null,null,null,null,null,null,null,null,null,null,null,null,null,null,null,null,null,null,null,null,null,null,null,null,null,null,null,null,null,null,null,null,null,null,null,{"$f":"B36","v":"Forstøbning"},{"$f":"F38","v":0.15},{"$f":"G36","v":"2,54"},{"$f":"IF(BB40=0, 0, IF(BC40=0, 0, BB40/BC40))","v":5.905511811023622E-2},null,null,null,null,0.15,2.4E-2,1.2999999999999999E-2,7.0000000000000001E-3,3.0000000000000001E-3,null,null,0.15,2.4E-2,1.2999999999999999E-2,7.0000000000000001E-3,3.0000000000000001E-3,null,null,null,null,null,null,null,null,null,null,null,null,"Bund Ribbe4",{"$f":"IF(J14=\"\",0,IF(J15=\"\",0,IF(J16=\"\",0,M16+K16)))","v":4.0999999999999996},0,null,null,null,null,null,null,{"$f":"CP39","v":8},{"$f":"CQ37","v":2},null,null,null,null,null,null,null,null,null,null,null,null,null,null,null,null,null,null,null,null,null,null,{"$f":"Materialer!$H35","v":0},"",{"$f":"Materialer!$I35","v":0},"",{"$f":"Materialer!$E35","v":0},"",{"$f":"Materialer!$F35","v":0},"",{"$f":"Materialer!$E35","v":0},"",{"$f":"Materialer!$F35","v":0},"",{"$f":"Materialer!$E35","v":0},"",{"$f":"Materialer!$F35","v":0},"",{"$f":"Materialer!$B35","v":0},"",{"$f":"Materialer!$C35","v":0},"",null,{"$f":"Materialer!$B35","v":0},{"$f":"Materialer!$C35","v":0},{"$f":"Materialer!$E35","v":0},{"$f":"Materialer!$F35","v":0},{"$f":"Materialer!$H35","v":0},{"$f":"Materialer!$I35","v":0},null,null,null,null,null,1.8,0,null,null,null,null,null,null,null,null,null,null,null,null,null,null,null,null,null,"X","Y","X","Y","X","Y","X","Y","X","Y","X","Y",null,null,null,null,null,"","","","","",""]
[null,null,null,null,null,null,null,null,null,null,null,null,null,null,null,null,null,null,null,null,null,null,null,null,null,null,null,null,null,null,null,null,null,null,null,null,null,null,null,null,null,null,null,null,null,null,null,null,null,null,null,null,{"$f":"B37","v":"Isolering"},0.24999999999999997,3.6999999999999998E-2,{"$f":"IF(BB41=0, 0, IF(BC41=0, 0, BB41/BC41))","v":6.7567567567567561},null,null,null,null,0.2,2.7E-2,1.7000000000000001E-2,1.2E-2,8.0000000000000002E-3,null,null,0.2,2.7E-2,1.7000000000000001E-2,1.2E-2,8.0000000000000002E-3,null,null,null,null,null,null,null,"Korrektion for Ophængbøjler (ds418:2011 side 31)",null,null,null,null,null,{"$f":"CH40","v":4.0999999999999996},{"$f":"IF(J14=\"\",0,IF(J15=\"\",0,IF(J16=\"\",0,G11)))","v":0.2},null,null,null,null,null,null,{"$f":"CP37","v":7},{"$f":"CQ37","v":2},null,null,null,null,null,null,null,null,null,null,null,null,null,null,null,null,null,null,null,null,null,null,null,null,null,null,null,null,null,null,null,null,null,null,null,null,null,null,null,null,null,null,null,null,null,null,null,null,null,null,null,null,null,null,1.5,0,null,null,"Rib om dør3",{"$f":"CL32","v":3},0.2,{"$f":"IF(MAX(EY41:EY45)>=$V$6,1,0)*IF(MIN(EY41:EY45)<=$V$6,1,0)","v":0},null,"Rib om vindue3",{"$f":"CP32","v":6.9},{"$f":"CQ32","v":0.4},{"$f":"IF(MAX(FD41:FD45)>=$V$6,1,0)*IF(MIN(FD41:FD45)<=$V$6,1,0)","v":0},{"$f":"IF($FF$41>0,FE41,\"\")","v":""},null,null,null,null,null,{"$f":"FQ37-FQ34","v":0.4},0,{"$f":"FQ37-FQ13","v":{"$error":"#VALUE!"}},{"$f":"FP13","v":""},{"$f":"FQ37-FQ22","v":{"$error":"#VALUE!"}},{"$f":"FP24","v":""},{"$f":"FQ37-FQ19","v":0.35},{"$f":"FP20","v":2},0,0,{"$f":"$FQ$37-$FQ$30","v":{"$error":"#VALUE!"}},{"$f":"MAX($FP$33,$FP$31)","v":0},null,null,null,null,null,"","","","","",""]
[null,null,null,null,null,null,null,null,null,null,null,null,null,null,null,null,null,null,null,null,null,null,null,null,null,null,null,null,null,null,null,null,null,null,null,null,null,null,null,null,null,null,null,null,null,null,null,null,null,null,null,null,{"$f":"B38","v":"Bagstøbning"},{"$f":"F36","v":0.1},2.44,{"$f":"IF(BB42=0, 0, IF(BC42=0, 0, BB42/BC42))","v":4.0983606557377053E-2},null,null,null,null,0.25,2.8000000000000001E-2,1.9E-2,1.4999999999999999E-2,1.0999999999999999E-2,null,null,0.25,2.8000000000000001E-2,1.9E-2,1.4999999999999999E-2,1.0999999999999999E-2,null,null,null,null,null,null,null,null,null,null,null,null,null,{"$f":"IF(J14=\"\",0,IF(J15=\"\",0,IF(J16=\"\",0,D8-G9)))","v":9.6000000000000014},{"$f":"CI41","v":0.2},null,null,null,null,null,null,null,null,null,null,null,null,null,null,null,null,null,null,null,null,null,null,null,null,null,null,null,null,null,null,null,null,null,null,null,null,null,null,null,null,null,null,null,null,null,null,null,null,null,null,null,null,null,null,null,null,null,null,null,null,null,null,null,null,null,null,null,3,2.1,null,null,null,6.9,1.6,null,{"$f":"IF($FF$41>0,FE42,\"\")","v":""},null,null,null,null,null,{"$f":"FM41","v":0.4},{"$f":"D9","v":4},{"$f":"FQ37-FQ34","v":0.4},{"$f":"FP41","v":""},{"$f":"FQ37-FQ34","v":0.4},{"$f":"FR41","v":""},{"$f":"FQ37-(FQ34)","v":0.4},{"$f":"FT41","v":2},0,{"$f":"FP20","v":2},{"$f":"$FQ$37-$FQ$34","v":0.4},{"$f":"FX41","v":0},null,null,null,null,null,"","","","","",""]
[null,null,null,null,null,null,null,null,null,null,null,null,null,null,null,null,null,null,null,null,null,null,null,null,null,null,null,null,null,null,null,null,null,null,null,null,null,null,null,null,null,null,null,null,null,null,null,null,null,null,null,null,"Udvendig overgangsisolans",null,null,{"$f":"BD12","v":0.04},null,null,null,null,null,null,null,null,null,null,null,null,null,null,null,null,null,"Areal",null,null,null,null,null,{"$f":"IF(M11=\"Stål\",(M9*(170*(PI()*((M10/1000)/2)^2))),IF(M11=\"Rustfast stål\",(M9*(60*(PI()*((M10/1000)/2)^2))),\"\"))","v":1.1780972450961723E-2},"W/m²K",null,null,null,null,{"$f":"CH42","v":9.6000000000000014},{"$f":"CI40","v":0},null,null,null,null,null,"Rib om vindue4",{"$f":"CP37-L20","v":6.9},{"$f":"CQ37-L20","v":1.9},null,null,null,null,null,null,null,null,null,null,null,null,null,null,null,null,null,null,null,null,null,null,null,null,null,null,null,null,null,null,null,null,null,null,null,null,null,null,null,null,null,null,null,null,null,null,null,null,null,null,null,null,null,"Bund Ribbe3",{"$f":"CH34","v":2.8},0,{"$f":"IF(MAX(ET43:ET47)>=$V$6,1,0)*IF(MIN(ET43:ET47)<=$V$6,1,0)","v":0},null,null,4.2,2.1,null,null,null,8.1,1.6,null,null,null,null,null,null,null,{"$f":"FQ37","v":0.5},{"$f":"FN42","v":4},{"$f":"FO42","v":0.4},{"$f":"FP14","v":""},{"$f":"FQ42","v":0.4},{"$f":"FP25","v":""},{"$f":"FS42","v":0.4},{"$f":"IF(FP21>0,FP21,\"\")","v":2.1},{"$f":"FQ37","v":0.5},{"$f":"FV42","v":2},{"$f":"FW42","v":0.4},{"$f":"MAX($FP$30,$FP$32)","v":0},null,null,null,null,null,"","","","","",""]
[null,null,null,null,null,null,null,null,null,null,null,null,null,null,null,null,null,null,null,null,null,null,null,null,null,null,null,null,null,null,null,null,null,null,null,null,null,null,null,null,null,null,null,null,null,null,null,null,null,null,null,null,null,null,"ƩR",{"$f":"SUM(BD39:BD43)","v":7.0267954814243696},{"$f":"BW51","v":0.75},{"$f":"1/BD44","v":0.14231238160318488},null,"Øvre værdier",null,null,null,"Udtræk fra tabel",null,null,"Øvre værdier",null,null,null,"Udtræk fra tabel",null,null,"Areal af væg",{"$f":"((D8-G8-G9)*(D9-G10-G11))-(((J14+L14)*(K14+L14+L14))+((J15+L15)*(K15+L15+L15))+((J16+L16)*(K16+L16+L16)))-(((J17+L17+L17)*(K17+L17+L17))+((J18+L18+L18)*(K18+L18+L18))+((J19+L19+L19)*(K19+L19+L19))+((J20+L20+L20)*(K20+L20+L20))+((J21+L21+L21)*(K21+L21+L21)))-((J22*K22)+(J23*K23)+(J24*K24))","v":18.329999999999998},"m²",null,null,null,null,null,null,null,null,null,{"$f":"CH40","v":4.0999999999999996},{"$f":"CI40","v":0},null,null,null,null,null,null,{"$f":"CP43","v":6.9},{"$f":"CQ43+L20+L20+J20","v":3.1},null,null,null,null,null,null,null,null,null,null,null,null,null,null,null,null,null,null,null,null,null,null,null,null,null,null,null,null,null,null,null,null,null,null,null,null,null,null,null,null,null,null,null,null,null,null,null,null,null,null,null,null,null,null,2.8,0.2,null,null,null,4.2,0.2,null,null,null,8.1,0.4,null,null,null,null,null,null,null,{"$f":"FM43","v":0.5},{"$f":"FN41","v":0},{"$f":"FO41","v":{"$error":"#VALUE!"}},{"$f":"FP43","v":""},{"$f":"FQ41","v":{"$error":"#VALUE!"}},{"$f":"FR43","v":""},{"$f":"FS41","v":0.35},{"$f":"FT43","v":2.1},{"$f":"FU43","v":0.5},0,{"$f":"FW41","v":{"$error":"#VALUE!"}},{"$f":"FX43","v":0},null,null,null,null,null,"","","","","",""]
[null,null,null,null,null,null,null,null,null,null,null,null,null,null,null,null,null,null,null,null,null,null,null,null,null,null,null,null,null,null,null,null,null,null,null,null,null,null,null,null,null,null,null,null,null,null,null,null,null,null,null,null,"Materiale","l","Ψ","L",null,"U",null,"Isolering i væg",{"$f":"IF(BW$64<BI39,BI39,IF(BW$64<BI40,BI40,IF(BW$64<BI41,BI41,IF(BW$64>=BI41,BI42,\"FEJL\"))))","v":0.25},null,null,"Min","Maks",null,"Isolering i væg",{"$f":"IF(BW$64<BP39,BP39,IF(BW$64<BP40,BP40,IF(BW$64<BP41,BP41,IF(BW$64>=BP41,BP42,\"FEJL\"))))","v":0.25},null,null,"Min","Maks",null,"Areal af venstre ribbe",{"$f":"D9*G8","v":0.8},"m²",null,null,null,"Stål",null,null,null,null,null,null,null,null,null,null,null,null,null,{"$f":"CP44+L20+L20+K20","v":8.1},{"$f":"CQ44","v":3.1},null,null,null,null,null,null,null,null,null,null,null,null,null,null,null,null,null,null,null,null,null,null,null,null,null,null,null,null,null,null,null,null,null,null,null,null,null,null,null,null,null,null,null,null,null,null,null,null,null,null,null,null,null,null,3.1,0.2,null,null,null,null,null,null,null,null,6.9,0.4,null,null,null,null,null,null,null,{"$f":"FM41","v":0.4},{"$f":"FN44","v":0},{"$f":"FO41","v":{"$error":"#VALUE!"}},"",{"$error":"#VALUE!"},"",0.35,2,0,0,{"$f":"FW41","v":{"$error":"#VALUE!"}},{"$f":"FX41","v":0}]
[null,null,null,null,null,null,null,null,null,null,null,null,null,null,null,null,null,null,null,null,null,null,null,null,null,null,null,null,null,null,null,null,null,null,null,null,null,null,null,null,null,null,null,null,null,null,null,null,null,null,null,null,null,"m","W/mK","W/K",null,"W/m²K",null,"Ribbeisolering",{"$f":"IF(F$32<BJ38,BJ38,IF(F$32<BK38,BK38,IF(F$32<BL38,BL38,IF(F$32>=BL38,BM38,\"FEJL\"))))","v":0.1},null,null,{"$f":"IF($BI$53<BK$38,BJ39,IF(AND($BI$53>=BK$38,$BI$53<BL$38),BK39,IF(AND($BI$53>=BL$38,$BI$53<BM$38),BL39,IF($BI$53>=BM$38,BM39,\"FEJL\"))))","v":0},{"$f":"IF($BI$46<BK$38,BJ39,IF(AND($BI$46>=BK$38,$BI$46<BL$38),BK39,IF(AND($BI$46>=BL$38,$BI$46<BM$38),BL39,IF($BI$46>=BM$38,BM39,\"FEJL\"))))","v":0},null,"Ribbeisolering",{"$f":"IF(F$37<BQ38,BQ38,IF(F$37<BR38,BR38,IF(F$37<BS38,BS38,IF(F$37>=BS38,BT38,\"FEJL\"))))","v":0.1},null,null,{"$f":"IF($BP$53<BR$38,BQ39,IF(AND($BP$53>=BR$38,$BP$53<BS$38),BR39,IF(AND($BP$53>=BS$38,$BP$53<BT$38),BS39,IF($BP$53>=BT$38,BT39,\"FEJL\"))))","v":0},{"$f":"IF($BP$46<BR$38,BQ39,IF(AND($BP$46>=BR$38,$BP$46<BS$38),BR39,IF(AND($BP$46>=BS$38,$BP$46<BT$38),BS39,IF($BP$46>=BT$38,BT39,\"FEJL\"))))","v":0},null,"Areal af højre ribbe",{"$f":"D9*G9","v":0.8},"m²",null,null,null,"Rustfast stål",null,null,null,null,"Ramme",0,0,null,null,null,null,null,null,{"$f":"CP45","v":8.1},{"$f":"CQ43","v":1.9},null,null,null,null,null,null,null,null,null,null,null,null,null,null,null,null,null,null,null,null,null,null,null,null,null,null,null,null,null,null,null,null,null,null,null,null,null,null,null,null,null,null,null,null,null,null,null,null,null,null,null,null,null,null,3.1,0,null,null,null,null,null,null,null,"Vindue4",7,2,{"$f":"IF(MAX(FD46:FD50)>$V$6,1,0)*IF(MIN(FD46:FD50)<$V$6,1,0)","v":0},{"$f":"IF($FF$46>0,FE46,\"\")","v":""},null,null,null,null,null,"Forstøbning",null,"Topribbe",null,"Ribbe under øverste vindue",null,null,null,"Øverste vindueshul",null,"Nedereste forstærkning"]
[null,null,null,null,null,null,null,null,null,null,null,null,null,null,null,null,null,null,null,null,null,null,null,null,null,null,null,null,null,null,null,null,null,null,null,null,null,null,null,null,null,null,null,null,null,null,null,null,null,null,null,null,"Linjetabet",null,null,null,null,null,null,"Y-aksen 1",{"$f":"IF(BI45<BI40,BL46,IF(AND(BI45>=BI40,BI45<BI41),BL47,IF(AND(BI45>=BI41,BI45<BI42),BL48,IF(BI45>=BI42,BL49,\"FEJL\"))))","v":1.0999999999999999E-2},null,null,{"$f":"IF($BI$53<BK$38,BJ40,IF(AND($BI$53>=BK$38,$BI$53<BL$38),BK40,IF(AND($BI$53>=BL$38,$BI$53<BM$38),BL40,IF($BI$53>=BM$38,BM40,\"FEJL\"))))","v":3.0000000000000001E-3},{"$f":"IF($BI$46<BK$38,BJ40,IF(AND($BI$46>=BK$38,$BI$46<BL$38),BK40,IF(AND($BI$46>=BL$38,$BI$46<BM$38),BL40,IF($BI$46>=BM$38,BM40,\"FEJL\"))))","v":3.0000000000000001E-3},null,"Y-aksen 1",{"$f":"IF(BP45<BP40,BS46,IF(AND(BP45>=BP40,BP45<BP41),BS47,IF(AND(BP45>=BP41,BP45<BP42),BS48,IF(BP45>=BP42,BS49,\"FEJL\"))))","v":1.0999999999999999E-2},null,null,{"$f":"IF($BP$53<BR$38,BQ40,IF(AND($BP$53>=BR$38,$BP$53<BS$38),BR40,IF(AND($BP$53>=BS$38,$BP$53<BT$38),BS40,IF($BP$53>=BT$38,BT40,\"FEJL\"))))","v":3.0000000000000001E-3},{"$f":"IF($BP$46<BR$38,BQ40,IF(AND($BP$46>=BR$38,$BP$46<BS$38),BR40,IF(AND($BP$46>=BS$38,$BP$46<BT$38),BS40,IF($BP$46>=BT$38,BT40,\"FEJL\"))))","v":3.0000000000000001E-3},null,"Areal af top ribbe",{"$f":"(D8-G8-G9)*G10","v":1.8800000000000006},"m²",null,null,null,null,null,null,null,null,null,{"$f":"CH46","v":0},{"$f":"D9","v":4},null,null,null,null,null,null,{"$f":"CP43","v":6.9},{"$f":"CQ43","v":1.9},null,null,null,null,null,null,null,null,null,null,null,null,null,null,null,null,null,null,null,null,null,null,null,null,null,null,null,null,null,null,null,null,null,null,null,null,null,null,null,null,null,null,null,null,null,null,null,null,null,null,null,null,null,null,2.8,0,null,null,null,null,"Døre i snit",{"$f":"FA13+FA24+FA35","v":1},null,null,7,3,null,{"$f":"IF($FF$46>0,FE47,\"\")","v":""},null,null,null,null,null,"X","Y","X","Y","X","Y",null,null,"X","Y","X","Y"]
[null,null,null,null,null,null,null,null,null,null,null,null,null,null,null,null,null,null,null,null,null,null,null,null,null,null,null,null,null,null,null,null,null,null,null,null,null,null,null,null,null,null,null,null,null,null,null,null,null,null,null,null,"Linjetab for element",{"$f":"BW53+BW54+BW55+BW56","v":26.000000000000004},{"$f":"BI32","v":0},{"$f":"BB48*BC48","v":0},null,{"$f":"BD48/(BE$16+BE$23+BE$30+BE$37+BE$44)","v":0},null,"Y-aksen 2",{"$f":"IF(BI45<BI40,BM46,IF(AND(BI45>=BI40,BI45<BI41),BM47,IF(AND(BI45>=BI41,BI45<BI42),BM48,IF(BI45>=BI42,BM49,\"FEJL\"))))","v":1.0999999999999999E-2},null,null,8.0000000000000002E-3,8.0000000000000002E-3,null,"Y-aksen 2",{"$f":"IF(BP45<BP40,BT46,IF(AND(BP45>=BP40,BP45<BP41),BT47,IF(AND(BP45>=BP41,BP45<BP42),BT48,IF(BP45>=BP42,BT49,\"FEJL\"))))","v":1.0999999999999999E-2},null,null,8.0000000000000002E-3,8.0000000000000002E-3,null,"Areal af bund ribbe",{"$f":"(D8-G8-G9)*G11","v":1.8800000000000006},"m²",null,null,null,null,null,null,null,null,null,{"$f":"D8","v":9.8000000000000007},{"$f":"CI47","v":4},null,null,null,null,null,"Vindue5",{"$f":"M21","v":8.3000000000000007},{"$f":"N21+CO51","v":0.5},null,null,null,null,null,null,null,null,null,null,null,null,null,null,null,null,null,null,null,null,null,null,null,null,null,null,null,null,null,null,null,null,null,null,null,null,null,null,null,null,null,null,null,null,null,null,null,null,null,null,null,null,null,null,null,null,null,null,null,null,null,null,null,null,8,3,null,null,null,null,null,null,null,{"$f":"FS37-FS34","v":0},0,{"$f":"FQ37-FQ15","v":0.35},{"$f":"FP15","v":3.8},{"$f":"FQ41","v":{"$error":"#VALUE!"}},{"$f":"FP22","v":""},null,null,0,{"$f":"MAX(FP27,FP23)","v":0},{"$f":"$FQ$37-$FQ$30","v":{"$error":"#VALUE!"}},{"$f":"MIN($FP$33,$FP$31)","v":0}]
[null,null,null,null,null,null,null,null,null,null,null,null,null,null,null,null,null,null,null,null,null,null,null,null,null,null,null,null,null,null,null,null,null,null,null,null,null,null,null,null,null,null,null,null,null,null,null,null,null,null,null,null,"Linjetab for dør",{"$f":"BW58","v":16.200000000000003},{"$f":"BP32","v":0},{"$f":"BB49*BC49","v":0},null,{"$f":"BD49/(BE$16+BE$23+BE$30+BE$37+BE$44)","v":0},null,"Y12",{"$f":"IF(BI47=BI48,BI47,BI47+((BI48-BI47)*((F32-BI$58)/(BI$59-BI$58))))","v":1.0999999999999999E-2},null,null,1.0999999999999999E-2,1.0999999999999999E-2,null,"Y12",{"$f":"IF(BP47=BP48,BP47,BP47+((BP48-BP47)*((F37-BP$58)/(BP$59-BP$58))))","v":1.0999999999999999E-2},null,null,1.0999999999999999E-2,1.0999999999999999E-2,null,"Areal af ribbe om vinduer",{"$f":"(2*(((K17+L17)*L17)+((J17+L17)*L17)))+(2*(((K18+L18)*L18)+((J18+L18)*L18)))+(2*(((K19+L19)*L19)+((J19+L19)*L19)))+(2*(((K20+L20)*L20)+((J20+L20)*L20)))+(2*(((K21+L21)*L21)+((J21+L21)*L21)))","v":2.2000000000000002},"m²",null,"Lag i konstruktionen",null,null,null,null,null,null,null,{"$f":"CH48","v":9.8000000000000007},{"$f":"CI46","v":0},null,null,null,null,null,null,{"$f":"CP48","v":8.3000000000000007},{"$f":"CQ48+J21","v":1.5},null,null,null,null,null,null,null,null,null,null,null,null,null,null,null,null,null,null,null,null,null,null,null,null,null,null,null,null,null,null,null,null,null,null,null,null,null,null,null,null,null,null,null,null,null,null,null,null,null,null,null,null,null,"Bund Ribbe4",{"$f":"CH40","v":4.0999999999999996},0,{"$f":"IF(MAX(ET49:ET53)>=$V$6,1,0)*IF(MIN(ET49:ET53)<=$V$6,1,0)","v":0},null,null,null,null,null,null,null,8,2,null,null,null,null,null,null,null,{"$f":"FM48","v":0},{"$f":"FN42","v":4},{"$f":"FQ37-FQ34","v":0.4},{"$f":"FP48","v":3.8},{"$f":"FQ42","v":0.4},{"$f":"FR48","v":""},null,null,{"$f":"FQ37","v":0.5},{"$f":"FV48","v":0},{"$f":"$FQ$37-$FQ$34","v":0.4},{"$f":"FX48","v":0}]
[null,null,null,null,null,null,null,null,null,null,null,null,null,null,null,null,null,null,null,null,null,null,null,null,null,null,null,null,null,null,null,null,null,null,null,null,null,null,null,null,null,null,null,null,null,null,null,null,null,null,null,null,"Linjetab for vindue",{"$f":"BW59","v":24},{"$f":"BI64","v":0},{"$f":"BB50*BC50","v":0},null,0,null,null,null,null,null,null,null,null,null,null,null,null,null,null,null,"Areal af ribbe om døre",{"$f":"((2*((J14+L14)*L14))+(K14*L14))+((2*((J15+L15)*L15))+(K15*L15))+((2*((J16+L16)*L16))+(K16*L16))","v":1.56},"m²",null,null,null,null,null,null,null,null,null,{"$f":"CH46","v":0},{"$f":"CI46","v":0},null,null,null,null,null,"Tillæg til dør1",{"$f":"CP49+K21","v":9.3000000000000007},{"$f":"CQ49","v":1.5},null,null,null,null,null,null,null,null,null,null,null,null,null,null,null,null,null,null,null,null,null,null,null,null,null,null,null,null,null,null,null,null,null,null,null,null,null,null,null,null,null,null,null,null,null,null,null,null,null,null,null,null,null,null,4.0999999999999996,0.2,null,null,null,null,null,null,null,null,7,2,null,null,null,null,null,null,null,{"$f":"FQ36","v":0.1},{"$f":"FN49","v":4},{"$f":"FO49","v":0.4},{"$f":"FP16","v":4},{"$f":"FQ49","v":0.4},{"$f":"FP23","v":""},null,null,{"$f":"FU49","v":0.5},{"$f":"MAX(FP24,FP28)","v":0},{"$f":"FW49","v":0.4},{"$f":"MIN($FP$30,$FP$32)","v":0}]
[null,null,null,null,null,null,null,null,null,null,null,null,null,null,null,null,null,null,null,null,null,null,null,null,null,null,null,null,null,null,null,null,null,null,null,null,null,null,null,null,null,null,null,null,null,null,null,null,null,null,null,null,"Linjetab for Forstærkninger",{"$f":"BW60","v":6},{"$f":"BP64","v":0},{"$f":"BB51*BC51","v":0},null,0,null,"Nedre værdier",null,null,null,null,null,null,"Nedre værdier",null,null,null,null,null,null,"Areal af Forstrækning",{"$f":"(J22*K22)+(J23*K23)+(J24*K24)","v":0.75},"m²",null,null,null,null,null,0.1,{"$f":"$DQ$10&$DQ$11&$DQ$12&$DQ$13&$DQ$14&$DQ$15&$DQ$16&$DQ$17&$DQ$18&$DQ$19&$DQ$20&$DQ$21&$DQ$22&$DQ$23&$DQ$24&$DQ$25&$DQ$26&$DQ$27&$DQ$28&$DQ$29&$DQ$30&$DQ$31&$DQ$32&$DQ$33&$DQ$34&$DQ$35&$DQ$36&$DQ$37&$DQ$38&$DQ$39&$DQ$40","v":"2,54"},null,null,null,null,null,null,null,null,null,null,{"$f":"CP50","v":9.3000000000000007},{"$f":"CQ48","v":0.5},null,null,null,null,null,null,null,null,null,null,null,null,null,null,null,null,null,null,null,null,null,null,null,null,null,null,null,null,null,null,null,null,null,null,null,null,null,null,null,null,null,null,null,null,null,null,null,null,null,null,null,null,null,null,9.6000000000000014,0.2,null,null,null,null,null,null,null,null,null,null,null,null,null,null,null,null,null,{"$f":"FM50","v":0.1},{"$f":"FN48","v":0},{"$f":"FO48","v":0.35},{"$f":"FP50","v":4},{"$f":"FQ48","v":{"$error":"#VALUE!"}},{"$f":"FR50","v":""},null,null,0,{"$f":"FV50","v":0},{"$f":"FW48","v":{"$error":"#VALUE!"}},{"$f":"FX50","v":0}]
[null,null,null,null,null,null,null,null,null,null,null,null,null,null,null,null,null,null,null,null,null,null,null,null,null,null,null,null,null,null,null,null,null,null,null,null,null,null,null,null,null,null,null,null,null,null,null,null,null,null,null,null,null,null,null,null,null,{"$f":"SUM(BF48:BF51)","v":0},null,"Isolering i væg",{"$f":"IF(BW$64<BI40,BI39,IF(BW$64<BI41,BI40,IF(BW$64<BI42,BI41,IF(BW$64>=BI42,BI42,\"FEJL\"))))","v":0.25},null,null,null,null,null,"Isolering i væg",{"$f":"IF(BW$64<BP40,BP39,IF(BW$64<BP41,BP40,IF(BW$64<BP42,BP41,IF(BW$64>=BP42,BP42,\"FEJL\"))))","v":0.25},null,null,null,null,null,"Længder",null,null,null,null,null,null,null,0.1,{"$f":"$DU$10&$DU$11&$DU$12&$DU$13&$DU$14&$DU$15&$DU$16&$DU$17&$DU$18&$DU$19&$DU$20&$DU$21&$DU$22&$DU$23&$DU$24&$DU$25&$DU$26&$DU$27&$DU$28&$DU$29&$DU$30&$DU$31&$DU$32&$DU$33&$DU$34&$DU$35&$DU$36&$DU$37&$DU$38&$DU$39&$DU$40","v":"0,035"},null,"Snit",{"$f":"V6","v":1},0,null,null,null,null,null,null,{"$f":"CP48","v":8.3000000000000007},{"$f":"CQ48","v":0.5},null,null,null,null,null,null,null,null,null,null,null,null,null,null,null,null,null,null,null,null,null,null,null,null,null,null,null,null,null,null,null,null,null,null,null,null,null,null,null,null,null,null,null,null,null,null,null,null,null,null,null,null,null,null,9.6000000000000014,0,null,null,null,null,null,null,null,"Rib om vindue4",{"$f":"CP43","v":6.9},{"$f":"CQ43","v":1.9},{"$f":"IF(MAX(FD52:FD56)>=$V$6,1,0)*IF(MIN(FD52:FD56)<=$V$6,1,0)","v":0},{"$f":"IF($FF$52>0,FE52,\"\")","v":""},null,null,null,null,null,{"$f":"FM48","v":0},{"$f":"FN51","v":0},{"$f":"FO48","v":0.35},{"$f":"FP48","v":3.8},{"$f":"FQ48","v":{"$error":"#VALUE!"}},{"$f":"FR48","v":""},null,null,{"$f":"FU48","v":0},{"$f":"FV48","v":0},{"$f":"FW48","v":{"$error":"#VALUE!"}},{"$f":"FX48","v":0}]
[null,null,null,null,null,null,null,null,null,null,null,null,null,null,null,null,null,null,null,null,null,null,null,null,null,null,null,null,null,null,null,null,null,null,null,null,null,null,null,null,null,null,null,null,null,null,null,null,null,null,null,null,"Punkttab",null,null,null,null,null,null,"Ribbeisolering",{"$f":"IF(F$32<BK$6,BJ38,IF(F$32<BL$6,BK38,IF(F$32<BM$6,BL38,IF(F$32>=BL38,BM38,\"FEJL\"))))","v":0.1},null,null,null,null,null,"Ribbeisolering",{"$f":"IF(F$37<BR$6,BQ38,IF(F$37<BS$6,BR38,IF(F$37<BT$6,BS38,IF(F$37>=BS38,BT38,\"FEJL\"))))","v":0.1},null,null,null,null,null,"Venstre ribbe",{"$f":"D9-G10-G11","v":3.5999999999999996},"m",null,null,null,null,null,0.1,{"$f":"$DY$10&$DY$11&$DY$12&$DY$13&$DY$14&$DY$15&$DY$16&$DY$17&$DY$18&$DY$19&$DY$20&$DY$21&$DY$22&$DY$23&$DY$24&$DY$25&$DY$26&$DY$27&$DY$28&$DY$29&$DY$30&$DY$31&$DY$32&$DY$33&$DY$34&$DY$35&$DY$36&$DY$37&$DY$38&$DY$39&$DY$40","v":"0,035"},null,null,{"$f":"CH52","v":1},{"$f":"D9+0.5","v":4.5},null,null,null,null,null,null,null,null,null,null,null,null,null,null,null,null,null,null,null,null,null,null,null,null,null,null,null,null,null,null,null,null,null,null,null,null,null,null,null,null,null,null,null,null,null,null,null,null,null,null,null,null,null,null,null,null,null,null,null,null,null,null,4.0999999999999996,0,null,null,null,null,null,null,null,null,6.9,3.1,null,{"$f":"IF($FF$52>0,FE53,\"\")","v":""},null,null,null,null,null,null,null,"Sideribbe",null,"Ribbe over nederste vindue",null,null,null,"Nederste vindueshul"]
[null,null,null,null,null,null,null,null,null,null,null,null,null,null,null,null,null,null,null,null,null,null,null,null,null,null,null,null,null,null,null,null,null,null,null,null,null,null,null,null,null,null,null,null,null,null,null,null,null,null,null,null,"Ophængsbøjler",null,null,null,null,{"$f":"CB43/(BE44+BE37+BE30+BE23+BE16)","v":4.1776498053055757E-4},null,"Y-aksen 1",{"$f":"IF(BI52<BI40,BL46,IF(AND(BI52>=BI40,BI52<BI41),BL47,IF(AND(BI52>=BI41,BI52<BI42),BL48,IF(BI52>=BI42,BL49,\"FEJL\"))))","v":1.0999999999999999E-2},null,null,null,null,null,"Y-aksen 1",{"$f":"IF(BP52<BP40,BS46,IF(AND(BP52>=BP40,BP52<BP41),BS47,IF(AND(BP52>=BP41,BP52<BP42),BS48,IF(BP52>=BP42,BS49,\"FEJL\"))))","v":1.0999999999999999E-2},null,null,null,null,null,"Højre ribbe",{"$f":"D9-G10-G11","v":3.5999999999999996},"m",null,null,null,null,null,0.1,{"$f":"$EC$10&$EC$11&$EC$12&$EC$13&$EC$14&$EC$15&$EC$16&$EC$17&$EC$18&$EC$19&$EC$20&$EC$21&$EC$22&$EC$23&$EC$24&$EC$25&$EC$26&$EC$27&$EC$28&$EC$29&$EC$30&$EC$31&$EC$32&$EC$33&$EC$34&$EC$35&$EC$36&$EC$37&$EC$38&$EC$39&$EC$40","v":"0,035"},null,null,null,null,null,null,null,null,null,"Rib om vindue5",{"$f":"CP48-L21","v":8.2000000000000011},{"$f":"CQ48-L21","v":0.4},null,null,null,null,null,null,null,null,null,null,null,null,null,null,null,null,null,null,null,null,null,null,null,null,null,null,null,null,null,null,null,null,null,null,null,null,null,null,null,null,null,null,null,null,null,null,null,null,null,null,null,null,null,null,null,null,null,null,null,null,null,null,null,null,8.1,3.1,null,null,null,null,null,null,null,null,null,"X","Y","X","Y",null,null,"X","Y"]
[null,null,null,null,null,null,null,null,null,null,null,null,null,null,null,null,null,null,null,null,null,null,null,null,null,null,null,null,null,null,null,null,null,null,null,null,null,null,null,null,null,null,null,null,null,null,null,null,null,null,null,null,"U-værdi",null,null,null,{"$f":"(((BF16*BE16)+(BF23*BE23)+(BF30*BE30)+(BF37*BE37)+(BF44*BE44))/(BE16+BE23+BE30+BE37+BE44))+BF52+BF54","v":0.1299199725556946},"W/m²K",null,"Y-aksen 2",{"$f":"IF(BI52<BI40,BM46,IF(AND(BI52>=BI40,BI52<BI41),BM47,IF(AND(BI52>=BI41,BI52<BI42),BM48,IF(BI52>=BI42,BM49,\"FEJL\"))))","v":1.0999999999999999E-2},null,null,null,null,null,"Y-aksen 2",{"$f":"IF(BP52<BP40,BT46,IF(AND(BP52>=BP40,BP52<BP41),BT47,IF(AND(BP52>=BP41,BP52<BP42),BT48,IF(BP52>=BP42,BT49,\"FEJL\"))))","v":1.0999999999999999E-2},null,null,null,null,null,"Top ribbe",{"$f":"D8-G8-G9","v":9.4000000000000021},"m",null,null,null,null,null,0.1,{"$f":"$EG$10&$EG$11&$EG$12&$EG$13&$EG$14&$EG$15&$EG$16&$EG$17&$EG$18&$EG$19&$EG$20&$EG$21&$EG$22&$EG$23&$EG$24&$EG$25&$EG$26&$EG$27&$EG$28&$EG$29&$EG$30&$EG$31&$EG$32&$EG$33&$EG$34&$EG$35&$EG$36&$EG$37&$EG$38&$EG$39&$EG$40","v":"2,44"},null,null,null,null,null,null,null,null,null,null,{"$f":"CP54","v":8.2000000000000011},{"$f":"CQ54+L21+L21+J21","v":1.6},null,null,null,null,null,null,null,null,null,null,null,null,null,null,null,null,null,null,null,null,null,null,null,null,null,null,null,null,null,null,null,null,null,null,null,null,null,null,null,null,null,null,null,null,null,null,null,null,null,null,null,null,null,"Ramme",{"$f":"CH46","v":0},0,null,null,null,null,null,null,null,null,8.1,1.9,null,null,null,null,null,null,null,null,null,null,{"$f":"FP22","v":""},{"$f":"FQ41","v":{"$error":"#VALUE!"}},{"$f":"FP28","v":""},null,null,0,{"$f":"MIN(FP23,FP27)","v":0}]
[null,null,null,null,null,null,null,null,null,null,null,null,null,null,null,null,null,null,null,null,null,null,null,null,null,null,null,null,null,null,null,null,null,null,null,null,null,null,null,null,null,null,null,null,null,null,null,null,null,null,null,null,null,null,null,null,null,null,null,"Y12",{"$f":"IF(BI54=BI55,BI54,BI54+((BI55-BI54)*((F32-BI$58)/(BI$59-BI$58))))","v":1.0999999999999999E-2},null,null,null,null,null,"Y12",{"$f":"IF(BP54=BP55,BP54,BP54+((BP55-BP54)*((F37-BP$58)/(BP$59-BP$58))))","v":1.0999999999999999E-2},null,null,null,null,null,"Bund ribbe",{"$f":"D8-G8-G9","v":9.4000000000000021},"m",null,null,null,null,null,null,null,null,null,null,null,null,null,null,null,null,null,{"$f":"CP55+L21+L21+K21","v":9.4},{"$f":"CQ55","v":1.6},null,null,null,null,null,null,null,null,null,null,null,null,null,null,null,null,null,null,null,null,null,null,null,null,null,null,null,null,null,null,null,null,null,null,null,null,null,null,null,null,null,null,null,null,null,null,null,null,null,null,null,null,null,null,0,4,null,null,null,null,null,null,null,null,6.9,1.9,null,null,null,null,null,null,null,null,null,null,{"$f":"FP55","v":""},{"$f":"FQ42","v":0.4},{"$f":"FR55","v":""},null,null,{"$f":"FQ37","v":0.5},{"$f":"FV55","v":0}]
[null,null,null,null,null,null,null,null,null,null,null,null,null,null,null,null,null,null,null,null,null,null,null,null,null,null,null,null,null,null,null,null,null,null,null,null,null,null,null,null,null,null,null,null,null,null,null,null,null,null,null,null,null,null,null,null,null,null,null,null,null,null,null,null,null,null,null,null,null,null,null,null,null,null,null,null,null,null,null,null,null,null,null,null,null,null,null,null,null,null,null,null,null,{"$f":"CP56","v":9.4},{"$f":"CQ54","v":0.4},null,null,null,null,null,null,null,null,null,null,null,null,null,null,null,null,null,null,null,null,null,null,null,null,null,null,null,null,null,null,null,null,null,null,null,null,null,null,null,null,null,null,null,null,null,null,null,null,null,null,null,null,null,null,9.8000000000000007,4,null,null,null,null,null,null,null,"Vindue5",8.3000000000000007,0.5,{"$f":"IF(MAX(FD57:FD61)>$V$6,1,0)*IF(MIN(FD57:FD61)<$V$6,1,0)","v":0},{"$f":"IF($FF$57>0,FE57,\"\")","v":""},null,null,null,null,null,null,null,null,{"$f":"FP23","v":""},{"$f":"FQ43","v":0.4},{"$f":"FP29","v":""},null,null,{"$f":"FU56","v":0.5},{"$f":"MIN(FP24,FP28)","v":0}]
[null,null,null,null,null,null,null,null,null,null,null,null,null,null,null,null,null,null,null,null,null,null,null,null,null,null,null,null,null,null,null,null,null,null,null,null,null,null,null,null,null,null,null,null,null,null,null,null,null,null,null,null,null,null,null,null,null,null,null,"X-aksen 1",{"$f":"BI53","v":0.1},null,null,null,null,null,"X-aksen 1",{"$f":"BP53","v":0.1},null,null,null,null,null,"Døre",{"$f":"BU78","v":16.200000000000003},"m",null,null,null,null,null,null,null,null,null,null,null,null,null,null,null,null,null,{"$f":"CP54","v":8.2000000000000011},{"$f":"CQ54","v":0.4},null,null,null,null,null,null,null,null,null,null,null,null,null,null,null,null,null,null,null,null,null,null,null,null,null,null,null,null,null,null,null,null,null,null,null,null,null,null,null,null,null,null,null,null,null,null,null,null,null,null,null,null,null,null,9.8000000000000007,0,null,null,null,null,null,null,null,null,8.3000000000000007,1.5,null,{"$f":"IF($FF$57>0,FE58,\"\")","v":""},null,null,null,null,null,null,null,null,{"$f":"FP57","v":""},{"$f":"FQ44","v":{"$error":"#VALUE!"}},{"$f":"FR57","v":""},null,null,0,{"$f":"FV57","v":0}]
[null,null,null,null,null,null,null,null,null,null,null,null,null,null,null,null,null,null,null,null,null,null,null,null,null,null,null,null,null,null,null,null,null,null,null,null,null,null,null,null,null,null,null,null,null,null,null,null,null,null,null,null,null,null,null,null,null,null,null,"X-aksen 2",{"$f":"BI46","v":0.1},null,null,null,null,null,"X-aksen 2",{"$f":"BP46","v":0.1},null,null,null,null,null,"Vinduer",{"$f":"BU88","v":24},"m",null,null,null,null,null,null,3,null,null,null,null,null,null,null,null,null,null,null,null,null,null,null,null,null,null,null,null,null,null,null,null,null,null,null,null,null,null,null,null,null,null,null,null,null,null,null,null,null,null,null,null,null,null,null,null,null,null,null,null,null,null,null,null,null,null,null,null,null,null,null,null,null,null,0,0,null,null,null,null,null,null,null,null,9.3000000000000007,1.5,null,null,null,null,null,null,null,null,null,null,{"$f":"FP55","v":""},{"$f":"FQ45","v":{"$error":"#VALUE!"}},{"$f":"FR55","v":""},null,null,{"$f":"FU55","v":0},{"$f":"FV55","v":0}]
[null,null,null,null,null,null,null,null,null,null,null,null,null,null,null,null,null,null,null,null,null,null,null,null,null,null,null,null,null,null,null,null,null,null,null,null,null,null,null,null,null,null,null,null,null,null,null,null,null,null,null,null,null,null,null,null,null,null,null,null,null,null,null,null,null,null,null,null,null,null,null,null,null,"Forstærkning",{"$f":"(2*(J24+K24))+(2*(J22+K22))+(2*(J23+K23))","v":6},"m",null,null,null,null,null,null,4,null,null,null,null,null,null,null,null,null,null,null,null,null,null,null,null,null,null,null,null,null,null,null,null,null,null,null,null,null,null,null,null,null,null,null,null,null,null,null,null,null,null,null,null,null,null,null,null,null,null,null,null,null,null,null,null,null,null,null,null,null,null,null,null,null,null,null,null,null,null,null,null,null,null,null,null,9.3000000000000007,0.5,null,null,null,null,null,null,null,null,null,null,null,"Ribbe under nederste vindue"]
[null,null,null,null,null,null,null,null,null,null,null,null,null,null,null,null,null,null,null,null,null,null,null,null,null,null,null,null,null,null,null,null,null,null,null,null,null,null,null,null,null,null,null,null,null,null,null,null,null,null,null,null,null,null,null,null,null,null,null,null,null,null,null,null,null,null,null,null,null,null,null,null,null,null,null,null,null,null,null,null,null,null,5,null,null,null,null,null,null,null,null,null,null,null,null,null,null,null,null,null,null,null,null,null,null,null,null,null,null,null,null,null,null,null,null,null,null,null,null,null,null,null,null,null,null,null,null,null,null,null,null,null,null,null,null,null,null,null,null,null,null,null,null,null,null,null,null,null,null,null,null,null,null,null,null,null,null,null,null,8.3000000000000007,0.5,null,null,null,null,null,null,null,null,null,null,null,"X","Y"]
[null,null,null,null,null,null,null,null,null,null,null,null,null,null,null,null,null,null,null,null,null,null,null,null,null,null,null,null,null,null,null,null,null,null,null,null,null,null,null,null,null,null,null,null,null,null,null,null,null,null,null,null,null,null,null,null,null,null,null,null,null,null,null,null,null,null,null,null,null,null,null,null,null,null,null,null,null,null,null,null,null,null,null,null,null,null,null,null,null,null,null,null,null,null,null,null,null,null,null,null,null,null,null,null,null,null,null,null,null,null,null,null,null,null,null,null,null,null,null,null,null,null,null,null,null,null,null,null,null,null,null,null,null,null,null,null,null,null,null,null,null,null,null,null,null,null,null,null,null,null,null,null,null,null,null,null,null,null,null,null,null,null,null,null,null,null,null,null,null,null,null,null,{"$f":"FQ55","v":{"$error":"#VALUE!"}},{"$f":"FP26","v":""}]
[null,null,null,null,null,null,null,null,null,null,null,null,null,null,null,null,null,null,null,null,null,null,null,null,null,null,null,null,null,null,null,null,null,null,null,null,null,null,null,null,null,null,null,null,null,null,null,null,null,null,null,null,null,null,null,null,null,null,null,null,null,null,null,null,null,null,null,null,null,null,null,null,null,null,null,null,null,null,null,null,null,null,null,null,null,null,null,null,null,null,null,null,null,null,null,null,null,null,null,null,null,null,null,null,null,null,null,null,null,null,null,null,null,null,null,null,null,null,null,null,null,null,null,null,null,null,null,null,null,null,null,null,null,null,null,null,null,null,null,null,null,null,null,null,null,null,null,null,null,null,null,{"$f":"sum","v":{"$error":"#NAME?"}},null,null,null,null,null,null,"Rib om vindue5",{"$f":"CP54","v":8.2000000000000011},0.4,{"$f":"IF(MAX(FD63:FD67)>=$V$6,1,0)*IF(MIN(FD63:FD67)<=$V$6,1,0)","v":0},{"$f":"IF($FF$63>0,FE63,\"\")","v":""},null,null,null,null,null,null,null,null,null,{"$f":"FQ56","v":0.4},{"$f":"FR62","v":""}]
[null,null,null,null,null,null,null,null,null,null,null,null,null,null,null,null,null,null,null,null,null,null,null,null,null,null,null,null,null,null,null,null,null,null,null,null,null,null,null,null,null,null,null,null,null,null,null,null,null,null,null,null,null,null,null,null,null,null,null,"Ψ",{"$f":"IF(F32>0.1,0,IF(BI45=BI52,BI49,(BI56*(BI45-BW$64)+BI49*(BW$64-BI52))/(BI45-BI52)))","v":0},null,null,null,null,null,"Ψ",{"$f":"IF(F37>0.1,0,IF(BP45=BP52,BP49,(BP56*(BP45-BW$64)+BP49*(BW$64-BP52))/(BP45-BP52)))","v":0},null,null,null,null,null,"Isoleringstykkelse",{"$f":"SUM(IF(DL22=\"Isolering\",F14,0),IF(DL23=\"Isolering\",F15,0),IF(DL24=\"Isolering\",F16,0),IF(DL25=\"Isolering\",F17,0),IF(DL26=\"Isolering\",F18,0))","v":0.30000000000000004},"m",null,null,null,null,null,null,null,null,null,null,null,null,null,null,null,null,null,null,null,null,null,null,null,null,null,null,null,null,null,null,null,null,null,null,null,null,null,null,null,null,null,null,null,null,null,null,null,null,null,null,null,null,null,null,null,null,null,null,null,null,null,null,null,null,null,null,null,null,null,null,null,null,null,null,null,null,null,null,null,null,null,null,null,8.2000000000000011,1.6,null,{"$f":"IF($FF$63>0,FE64,\"\")","v":""},null,null,null,null,null,null,null,null,null,{"$f":"FQ57","v":0.4},{"$f":"FP27","v":""}]
[null,null,null,null,null,null,null,null,null,null,null,null,null,null,null,null,null,null,null,null,null,null,null,null,null,null,null,null,null,null,null,null,null,null,null,null,null,null,null,null,null,null,null,null,null,null,null,null,null,null,null,null,null,null,null,null,null,null,null,null,null,null,null,null,null,null,null,null,null,null,null,null,null,null,null,null,null,null,null,null,null,null,null,null,null,null,null,null,null,null,null,null,null,null,null,null,null,null,null,null,null,null,null,null,null,null,null,null,null,null,null,null,null,null,null,null,null,null,null,null,null,null,null,null,null,null,null,null,null,null,null,null,null,null,null,null,null,null,null,null,null,null,null,null,null,null,null,null,null,null,null,null,null,null,null,null,null,null,null,9.4,1.6,null,null,null,null,null,null,null,null,null,null,null,{"$f":"FQ58","v":{"$error":"#VALUE!"}},{"$f":"FR64","v":""}]
[null,null,null,null,null,null,null,null,null,null,null,null,null,null,null,null,null,null,null,null,null,null,null,null,null,null,null,null,null,null,null,null,null,null,null,null,null,null,null,null,null,null,null,null,null,null,null,null,null,null,null,null,null,null,null,null,null,null,null,null,null,null,null,null,null,null,null,null,null,null,null,null,null,"Bagstøbningstykkelse",{"$f":"SUM(IF(DL22=\"Bagstøbning\",F14,0),IF(DL23=\"Bagstøbning\",F15,0),IF(DL24=\"Bagstøbning\",F16,0),IF(DL25=\"Bagstøbning\",F17,0),IF(DL26=\"Bagstøbning\",F18,0))","v":0.1},"m",null,null,null,null,null,null,null,null,null,null,null,null,null,null,null,null,null,null,null,null,null,null,null,null,null,null,null,null,null,null,null,null,null,null,null,null,null,null,null,null,null,null,null,null,null,null,null,null,null,null,null,null,null,null,null,null,null,null,null,null,null,null,null,null,null,null,null,null,null,null,null,null,null,null,null,null,null,null,null,null,null,null,null,9.4,0.4,null,null,null,null,null,null,null,null,null,null,null,{"$f":"FQ59","v":{"$error":"#VALUE!"}},{"$f":"FR62","v":""}]
[null,null,null,null,null,null,null,null,null,null,null,null,null,null,null,null,null,null,null,null,null,null,null,null,null,null,null,null,null,null,null,null,null,null,null,null,null,null,null,null,null,null,null,null,null,null,null,null,null,null,null,null,null,null,null,null,null,null,null,null,null,null,null,null,null,null,null,null,null,null,null,null,null,"Forstøbningstykkelse",{"$f":"SUM(IF(DL22=\"Forstøbning\",F14,0),IF(DL23=\"Forstøbning\",F15,0),IF(DL24=\"Forstøbning\",F16,0),IF(DL25=\"Forstøbning\",F17,0),IF(DL26=\"Forstøbning\",F18,0))","v":0.1},"m",null,null,null,null,null,null,null,null,null,null,null,null,null,null,null,null,null,null,null,null,null,null,null,null,null,null,null,null,null,null,null,null,null,null,null,null,null,null,null,null,null,null,null,null,null,null,null,null,null,null,null,null,null,null,null,null,null,null,null,null,null,null,null,null,null,null,null,null,null,null,null,null,null,null,null,null,null,null,null,null,null,null,null,8.2000000000000011,0.4]
[]
[null,null,null,null,null,null,null,null,null,null,null,null,null,null,null,null,null,null,null,null,null,null,null,null,null,null,null,null,null,null,null,null,null,null,null,null,null,null,null,null,null,null,null,null,null,null,null,null,null,null,null,null,null,null,null,null,null,null,null,"Energitab fordelt på områder",null,null,null,null,null,null,null,null,null,null,null,null,null,"Forstøbning λ",{"$f":"IF(DL11=3,SUM(DY10:DY40),IF(DL11=4,SUM(EC10:EC40),IF(DL11=5,SUM(EG10:EG40),0)))","v":2.44},null,null,null,null,null,null,null,null,null,null,null,null,null,null,null,null,null,null,null,null,null,null,null,null,null,null,null,null,null,null,null,null,null,null,null,null,null,null,null,null,null,null,null,null,null,null,null,null,null,null,null,null,null,null,null,null,null,null,null,null,null,null,null,null,null,null,null,null,null,null,null,null,null,null,null,null,null,null,null,null,null,null,null,null,"Vinduer i snit",null,{"$f":"FF13+FF24+FF35+FF46+FF57","v":0},null,null,null,null,null,null,"x"]
[null,null,null,null,null,null,null,null,null,null,null,null,null,null,null,null,null,null,null,null,null,null,null,null,null,null,null,null,null,null,null,null,null,null,null,null,null,null,null,null,null,null,null,null,null,null,null,null,null,null,null,null,null,null,null,null,null,null,null,null,null,null,null,"A","U","Vægt","Andel af energi","Pr. areal",null,null,null,null,null,null,null,null,null,null,null,null,null,null,null,null,null,null,null,null,null,null,null,null,null,null,null,null,null,null,null,null,null,null,null,null,null,null,null,null,null,null,null,null,null,null,null,null,null,null,null,null,null,null,null,null,null,null,null,null,null,null,null,null,null,null,null,null,null,null,null,null,null,null,null,null,null,null,null,null,null,null,null,null,null,null,null,null,null,null,null,null,null,null,null,null,null,null,null,null,1,3,1,4,5,2,6,8]
[null,null,null,null,null,null,null,null,null,null,null,null,null,null,null,null,null,null,null,null,null,null,null,null,null,null,null,null,null,null,null,null,null,null,null,null,null,null,null,null,null,null,null,null,null,null,null,null,null,null,null,null,"Fejltabel",null,null,null,null,null,null,null,null,null,null,"[m²]","[W/m²K]","[W/m²K]","[%]","[%/m²]",null,null,null,null,null,null,null,null,null,null,null,null,null,null,null,null,null,null,null,null,null,null,null,null,null,null,null,null,null,null,null,null,null,null,null,null,null,null,null,null,null,null,null,null,null,null,null,null,null,null,null,null,null,null,null,null,null,null,null,null,null,null,null,null,null,null,null,null,null,null,null,null,null,null,null,null,null,null,null,null,null,null,null,null,null,null,null,null,null,null,null,null,null,null,null,null,null,null,null,null,2,5,2,5,3,6,4,6]
[null,null,null,null,null,null,null,null,null,null,null,null,null,null,null,null,null,null,null,null,null,null,null,null,null,null,null,null,null,null,null,null,null,null,null,null,null,null,null,null,null,null,null,null,null,null,null,null,null,null,null,null,"Bredden af element må ikke være større end 10 m.",{"$f":"IF(BC72=1,BA72&\"  ! \",\"\")","v":""},{"$f":"IF(D8>10,1,0)","v":0},null,null,null,null,null,null,null,null,null,null,null,null,null,null,null,"Rippe længder",null,null,null,null,null,null,null,null,null,null,null,null,null,null,null,null,null,null,null,null,null,null,null,null,null,null,null,null,null,null,null,null,null,null,null,null,null,null,null,null,null,null,null,null,null,null,null,null,null,null,null,null,null,null,null,null,null,null,null,null,null,null,null,null,null,null,null,null,null,null,null,null,null,null,null,null,null,null,null,null,null,null,null,null,null,null,null,null,null,null,null,null,null,null,null,null,null,3,3,1,4,2,6,3,6]
[null,null,null,null,null,null,null,null,null,null,null,null,null,null,null,null,null,null,null,null,null,null,null,null,null,null,null,null,null,null,null,null,null,null,null,null,null,null,null,null,null,null,null,null,null,null,null,null,null,null,null,null,"Højden af elementet må ikke være større end 5 m.",{"$f":"IF(BC73=1,BA73&\"  ! \",\"\")","v":""},{"$f":"IF(D9>5,1,0)","v":0},null,null,null,null,"Hovedelement",null,null,null,{"$f":"BE16","v":18.329999999999998},{"$f":"BF13","v":0.11335577901365192},{"$f":"(BL73*BM73)/$BL$79","v":7.3681256358873751E-2},{"$f":"BN73/$BN$89*100","v":56.712801665107946},{"$f":"BO73/BL73","v":3.0939880886583717},null,null,"Dør",null,null,null,null,null,null,null,null,null,null,null,null,null,null,null,null,null,null,null,null,null,null,null,null,null,null,null,null,null,null,null,null,null,null,null,null,null,null,null,null,null,null,null,null,null,null,null,null,null,null,null,null,null,null,null,null,null,null,null,null,null,null,null,null,null,null,null,null,null,null,null,null,null,null,null,null,null,null,null,null,null,null,null,null,null,null,null,null,null,null,null,null,null,null,null,null,null,4,1]
[null,null,null,null,null,null,null,null,null,null,null,null,null,null,null,null,null,null,null,null,null,null,null,null,null,null,null,null,null,null,null,null,null,null,null,null,null,null,null,null,null,null,null,null,null,null,null,null,null,null,null,null,null,null,null,null,null,null,null,null,null,null,null,null,null,null,null,null,null,null,"længde","Kontrol","Endelig"]
[null,null,null,null,null,null,null,null,null,null,null,null,null,null,null,null,null,null,null,null,null,null,null,null,null,null,null,null,null,null,null,null,null,null,null,null,null,null,null,null,null,null,null,null,null,null,null,null,null,null,null,null,null,null,null,null,null,null,null,"Ribbe omkring element",null,null,null,{"$f":"BE23","v":5.3600000000000012},{"$f":"BF23","v":0.14231238160318488},{"$f":"(BL75*BM75)/$BL$79","v":2.7049445581314582E-2},{"$f":"BN75/$BN$89*100","v":20.820082585623176},{"$f":"BO75/BL75","v":3.8843437659744722},null,null,{"$f":"(2*(J14+L14)+(K14+2*L14))","v":5.4},{"$f":"IF(L14=0,0,1)","v":1},{"$f":"BS75*BT75","v":5.4}]
[null,null,null,null,null,null,null,null,null,null,null,null,null,null,null,null,null,null,null,null,null,null,null,null,null,null,null,null,null,null,null,null,null,null,null,null,null,null,null,null,null,null,null,null,null,null,null,null,null,null,null,null,null,null,null,null,null,null,null,"Ribbe omkring dør",null,null,null,{"$f":"BE30","v":1.56},{"$f":"BF30","v":0.14231238160318488},7.8725998333676762E-3,{"$f":"BN76/$BN$89*100","v":6.059576274920178},{"$f":"BO76/BL76","v":3.8843437659744731},null,null,{"$f":"+(2*(J15+L15)+(K15+2*L15))","v":5.4},{"$f":"IF(L15=0,0,1)","v":1},{"$f":"BS76*BT76","v":5.4},null,null,null,"Bindere"]
[null,null,null,null,null,null,null,null,null,null,null,null,null,null,null,null,null,null,null,null,null,null,null,null,null,null,null,null,null,null,null,null,null,null,null,null,null,null,null,null,null,null,null,null,null,null,null,null,null,null,null,null,null,null,null,null,null,null,null,"Ribbe omkring vindue",null,null,null,{"$f":"BE37","v":2.2000000000000002},{"$f":"BF37","v":0.14231238160318488},1.1102384380390311E-2,{"$f":"BN77/$BN$89*100","v":8.5455562851438387},{"$f":"BO77/BL77","v":3.8843437659744717},null,null,{"$f":"+(2*(J16+L16)+(K16+2*L16))","v":5.4},{"$f":"IF(L16=0,0,1)","v":1},5.4,null,null,null,null,null,null,null,null,null,null,null,null,null,null,null,null,null,null,null,null,null,null,null,null,null,null,null,null,null,null,null,null,null,null,null,null,null,null,null,null,null,null,null,null,null,null,null,null,null,null,null,null,null,null,null,null,null,null,null,null,null,null,null,null,null,null,null,{"$f":"IF(EK41=0,\"\",EK41)","v":""},""]
[null,null,null,null,null,null,null,null,null,null,null,null,null,null,null,null,null,null,null,null,null,null,null,null,null,null,null,null,null,null,null,null,null,null,null,null,null,null,null,null,null,null,null,null,null,null,null,null,null,null,null,null,null,{"$f":"IF(BC78=1,BA78&\"  ! \",\"\")","v":""},null,null,null,null,null,"Forstærkning",null,null,null,{"$f":"BE44","v":0.75},{"$f":"BF44","v":0.14231238160318488},3.7849037660421516E-3,{"$f":"BN78/$BN$89*100","v":2.9132578244808545},{"$f":"BO78/BL78","v":3.8843437659744726},null,null,null,"SUM",{"$f":"SUM(BU75:BU77)","v":16.200000000000003},null,null,null,null,"Endelig tillægsværdi",null,null,null,null,null,null,null,null,null,null,null,null,null,null,null,null,null,null,null,null,null,null,null,null,null,null,null,null,null,null,null,null,null,null,null,null,null,null,null,null,null,null,null,null,null,null,null,null,null,null,null,null,null,null,null,null,null,null,null,null,null,null,{"$f":"IF(EK42=0,\"\",EK42)","v":""},""]
[null,null,null,null,null,null,null,null,null,null,null,null,null,null,null,null,null,null,null,null,null,null,null,null,null,null,null,null,null,null,null,null,null,null,null,null,null,null,null,null,null,null,null,null,null,null,null,null,null,null,null,null,null,{"$f":"IF(BC79=1,BA79&\"  ! \",\"\")","v":""},null,null,null,null,null,null,null,null,"ƩA",{"$f":"SUM(BL73:BL78)","v":28.199999999999996},null,null,null,null,null,null,null,null,null,null,null,null,null,{"$f":"BZ81*((BZ82*BZ83*BZ84*(BZ86/BZ87)^2)/BZ85)","v":9.2486425464239491E-3},"ΔUf",null,"λf"]
[null,null,null,null,null,null,null,null,null,null,null,null,null,null,null,null,null,null,null,null,null,null,null,null,null,null,null,null,null,null,null,null,null,null,null,null,null,null,null,null,null,null,null,null,null,null,null,null,null,null,null,null,null,{"$f":"IF(BC80=1,BA80&\"  ! \",\"\")","v":""},null,null,null,null,null,null,null,null,null,null,null,null,null,null,null,null,null,null,null,null,null,null,null,null,null,null,"Plast",0]
[null,null,null,null,null,null,null,null,null,null,null,null,null,null,null,null,null,null,null,null,null,null,null,null,null,null,null,null,null,null,null,null,null,null,null,null,null,null,null,null,null,null,null,null,null,null,null,null,null,null,null,null,"Der må ikke være negative værdier i arket!",{"$f":"IF(BC81=1,BA81&\"  ! \",\"\")","v":""},{"$f":"IF(MIN(D8:D9,G8:G11,J9:K11,M9:M10,F14:G18,F21:G23,F26:G28,F31:G33,F36:G38,J14:N24)<0,1,0)","v":0},null,null,null,null,"Linjetab element",null,null,null,null,{"$f":"BF48","v":0},{"$f":"BM81","v":0},{"$f":"BN81/$BN$89*100","v":0},null,null,null,"Vindue",null,null,null,null,null,null,0.8,"α",null,"Rustfast stål",17]
[null,null,null,null,null,null,null,null,null,null,null,null,null,null,null,null,null,null,null,null,null,null,null,null,null,null,null,null,null,null,null,null,null,null,null,null,null,null,null,null,null,null,null,null,null,null,null,null,null,null,null,null,null,{"$f":"IF(BC82=1,BA82&\"  ! \",\"\")","v":""},null,null,null,null,null,"Linjetab dør",null,null,null,null,{"$f":"BF49","v":0},{"$f":"BM82","v":0},{"$f":"BN82/$BN$89*100","v":0},null,null,null,"længde","Kontrol","Endelig",null,null,null,null,{"$f":"IF(J10=CC80,CD80,IF(J10=CC81,CD81,IF(J10=CC82,CD82,IF(J10=CC83,CD83,\"FEJL\"))))","v":65},"λf",null,"Bronze",65]
[null,null,null,null,null,null,null,null,null,null,null,null,null,null,null,null,null,null,null,null,null,null,null,null,null,null,null,null,null,null,null,null,null,null,null,null,null,null,null,null,null,null,null,null,null,null,null,null,null,null,null,null,"Mangler inddata for forbindelsesbøjler","",{"$f":"IF(OR(J9=\"\",J10=\"\",J11=\"\"),1,0)","v":0},null,null,null,null,"Linjetab vinduer",null,null,null,null,0,0,{"$f":"BN83/$BN$89*100","v":0},null,null,null,{"$f":"(2*(J17+K17+4*L17))","v":4.8},{"$f":"IF(L17=0,0,1)","v":1},{"$f":"BS83*BT83","v":4.8},null,null,null,null,{"$f":"(((J11/2)/1000)^2)*3.14","v":7.0650000000000001E-6},"Af",null,"Forsinket jern",58,"*se område nedenfor"]
[null,null,null,null,null,null,null,null,null,null,null,null,null,null,null,null,null,null,null,null,null,null,null,null,null,null,null,null,null,null,null,null,null,null,null,null,null,null,null,null,null,null,null,null,null,null,null,null,null,null,null,null,null,"",null,null,null,null,null,"Linjetab forstærkninger",null,null,null,null,0,0,{"$f":"BN84/$BN$89*100","v":0},null,null,null,{"$f":"(2*(J18+K18+4*L18))","v":4.8},{"$f":"IF(L18=0,0,1)","v":1},{"$f":"BS84*BT84","v":4.8},null,null,null,null,{"$f":"J9","v":8},"nf"]
[null,null,null,null,null,null,null,null,null,null,null,null,null,null,null,null,null,null,null,null,null,null,null,null,null,null,null,null,null,null,null,null,null,null,null,null,null,null,null,null,null,null,null,null,null,null,null,null,null,null,null,null,null,"",null,null,null,null,null,null,null,null,null,null,null,null,null,null,null,null,{"$f":"(2*(J19+K19+4*L19))","v":4.8},{"$f":"IF(L19=0,0,1)","v":1},4.8,null,null,null,null,{"$f":"BW64","v":0.30000000000000004},"d1",null,"R1"]
[null,null,null,null,null,null,null,null,null,null,null,null,null,null,null,null,null,null,null,null,null,null,null,null,null,null,null,null,null,null,null,null,null,null,null,null,null,null,null,null,null,null,null,null,null,null,null,null,null,null,null,null,null,"",null,null,null,null,null,"Ophængsbøjler",null,null,null,null,{"$f":"BF54","v":4.1776498053055757E-4},4.1776498053055757E-4,{"$f":"BN86/$BN$89*100","v":0.32155562559980411},null,null,null,{"$f":"(2*(J20+K20+4*L20))","v":4.8},{"$f":"IF(L20=0,0,1)","v":1},4.8,null,null,null,null,{"$f":"CC90","v":8.5714285714285712},"R1",null,{"$f":"IF(DL23=\"Isolering\",BD8,\"\")","v":2.8571428571428572}]
[null,null,null,null,null,null,null,null,null,null,null,null,null,null,null,null,null,null,null,null,null,null,null,null,null,null,null,null,null,null,null,null,null,null,null,null,null,null,null,null,null,null,null,null,null,null,null,null,null,null,null,null,null,"",null,null,null,null,null,"Murbindere",null,null,null,null,{"$f":"BF15","v":9.2486425464239491E-3},{"$f":"(BL73*BM87)/BL79","v":6.0116176551755669E-3},{"$f":"BN87/$BN$89*100","v":4.6271697391242013},null,null,null,{"$f":"(2*(J21+K21+4*L21))","v":4.8},{"$f":"IF(L21=0,0,1)","v":1},4.8,null,null,null,null,{"$f":"BD13","v":8.8217822567261059},"RT",null,{"$f":"IF(DL24=\"Isolering\",BD9,\"\")","v":2.8571428571428572}]
[null,null,null,null,null,null,null,null,null,null,null,null,null,null,null,null,null,null,null,null,null,null,null,null,null,null,null,null,null,null,null,null,null,null,null,null,null,null,null,null,null,null,null,null,null,null,null,null,null,null,null,null,null,"",null,null,null,null,null,null,null,null,null,null,null,null,null,null,null,null,null,"SUM",{"$f":"SUM(BU83:BU87)","v":24},null,null,null,null,null,null,null,{"$f":"IF(DL25=\"Isolering\",BD10,\"\")","v":2.8571428571428572}]
[null,null,null,null,null,null,null,null,null,null,null,null,null,null,null,null,null,null,null,null,null,null,null,null,null,null,null,null,null,null,null,null,null,null,null,null,null,null,null,null,null,null,null,null,null,null,null,null,null,null,null,null,null,"",null,null,null,null,null,"Elementets samlede uværdi",null,null,null,"ƩU",{"$f":"BE55","v":0.1299199725556946},{"$f":"SUM(BN73:BN78)+SUM(BN81:BN87)","v":0.1299199725556946},{"$f":"SUM(BO73:BO78)+SUM(BO81:BO87)","v":100},null,null,null,null,null,null,null,null,null,null,null,null,null,{"$f":"IF(DL26=\"Isolering\",BD11,\"\")","v":""}]
[null,null,null,null,null,null,null,null,null,null,null,null,null,null,null,null,null,null,null,null,null,null,null,null,null,null,null,null,null,null,null,null,null,null,null,null,null,null,null,null,null,null,null,null,null,null,null,null,null,null,null,null,null,"",null,null,null,null,null,null,null,null,null,null,null,null,null,null,null,null,null,null,null,null,null,null,null,null,null,null,{"$f":"SUM(CC86:CC89)","v":8.5714285714285712}]
[null,null,null,null,null,null,null,null,null,null,null,null,null,null,null,null,null,null,null,null,null,null,null,null,null,null,null,null,null,null,null,null,null,null,null,null,null,null,null,null,null,null,null,null,null,null,null,null,null,null,null,null,null,"",null,null,null,null,null,null,null,null,null,null,null,null,{"$f":"IF(BM89=BN89,\"passer\",\"Fejl\")","v":"passer"}]
[null,null,null,null,null,null,null,null,null,null,null,null,null,null,null,null,null,null,null,null,null,null,null,null,null,null,null,null,null,null,null,null,null,null,null,null,null,null,null,null,null,null,null,null,null,null,null,null,null,null,null,null,null,""]
[]
[]
[]
[null,null,null,null,null,null,null,null,null,null,null,null,null,null,null,null,null,null,null,null,null,null,null,null,null,null,null,null,null,null,null,null,null,null,null,null,null,null,null,null,null,null,null,null,null,null,null,null,null,null,null,null,null,null,null,null,null,null,null,"Element orientering"]
[]
[null,null,null,null,null,null,null,null,null,null,null,null,null,null,null,null,null,null,null,null,null,null,null,null,null,null,null,null,null,null,null,null,null,null,null,null,null,null,null,null,null,null,null,null,null,null,null,null,null,null,null,null,null,null,null,null,null,null,null,null,"Dropdrown"]
[null,null,null,null,null,null,null,null,null,null,null,null,null,null,null,null,null,null,null,null,null,null,null,null,null,null,null,null,null,null,null,null,null,null,null,null,null,null,null,null,null,null,null,null,null,null,null,null,null,null,null,null,null,null,null,null,null,null,null,null,"Opad"]
[null,null,null,null,null,null,null,null,null,null,null,null,null,null,null,null,null,null,null,null,null,null,null,null,null,null,null,null,null,null,null,null,null,null,null,null,null,null,null,null,null,null,null,null,null,null,null,null,null,null,null,null,null,null,null,null,null,null,null,null,"Vandret",null,null,null,null,null,null,null,null,null,null,null,null,null,null,null,"*",null,null,null,null,{"$f":"17/CC102","v":0.120105},"ganger med denne værdi for at få rustfrit stål til at være 17, da vi er sikre på denne værdi."]
[null,null,null,null,null,null,null,null,null,null,null,null,null,null,null,null,null,null,null,null,null,null,null,null,null,null,null,null,null,null,null,null,null,null,null,null,null,null,null,null,null,null,null,null,null,null,null,null,null,null,null,null,null,null,null,null,null,null,null,null,"Nedad",null,null,null,null,null,null,null,null,null,null,null,null,null,null,null,"plast","diameter","ds418 værdi","Areal","ds418 værdi pr Areal",null,"Derefter ses at værdien for Bronze passer nogenlunde… og vi kan derfor ca. bestemme værdien for forzinket jern."]
[null,null,null,null,null,null,null,null,null,null,null,null,null,null,null,null,null,null,null,null,null,null,null,null,null,null,null,null,null,null,null,null,null,null,null,null,null,null,null,null,null,null,null,null,null,null,null,null,null,null,null,null,null,null,null,null,null,null,null,null,null,null,null,null,null,null,null,null,null,null,null,null,null,null,null,null,"rustfrit stål",3,4.0000000000000001E-3,{"$f":"(BZ102/1000)^2*3.14","v":2.826E-5},{"$f":"CA102/CB102","v":141.54281670205236},{"$f":"CC102*0.120105","v":17}]
[null,null,null,null,null,null,null,null,null,null,null,null,null,null,null,null,null,null,null,null,null,null,null,null,null,null,null,null,null,null,null,null,null,null,null,null,null,null,null,null,null,null,null,null,null,null,null,null,null,null,null,null,null,null,null,null,null,null,null,null,null,null,null,null,null,null,null,null,null,null,null,null,null,null,null,null,"rustfrit stål",4,8.0000000000000002E-3,{"$f":"(BZ103/1000)^2*3.14","v":5.024E-5},{"$f":"CA103/CB103","v":159.23566878980893},{"$f":"CC103*0.120105","v":19.125}]
[null,null,null,null,null,null,null,null,null,null,null,null,null,null,null,null,null,null,null,null,null,null,null,null,null,null,null,null,null,null,null,null,null,null,null,null,null,null,null,null,null,null,null,null,null,null,null,null,null,null,null,null,null,null,null,null,null,null,null,null,null,null,null,null,null,null,null,null,null,null,null,null,null,null,null,null,"rustfrit stål",5.5,1.4E-2,9.4984999999999999E-5,147.39169342527768,17.702479338842977]
[null,null,null,null,null,null,null,null,null,null,null,null,null,null,null,null,null,null,null,null,null,null,null,null,null,null,null,null,null,null,null,null,null,null,null,null,null,null,null,null,null,null,null,null,null,null,null,null,null,null,null,null,null,null,null,null,null,null,null,null,null,null,null,null,null,null,null,null,null,null,null,null,null,null,null,null,"Bronze",3,1.6E-2,2.826E-5,566.17126680820945,68]
[null,null,null,null,null,null,null,null,null,null,null,null,null,null,null,null,null,null,null,null,null,null,null,null,null,null,null,null,null,null,null,null,null,null,null,null,null,null,null,null,null,null,null,null,null,null,null,null,null,null,null,null,null,null,null,null,null,null,null,null,null,null,null,null,null,null,null,null,null,null,null,null,null,null,null,null,"Bronze",4,2.9000000000000001E-2,5.024E-5,577.22929936305741,69.328125000000014]
[null,null,null,null,null,null,null,null,null,null,null,null,null,null,null,null,null,null,null,null,null,null,null,null,null,null,null,null,null,null,null,null,null,null,null,null,null,null,null,null,null,null,null,null,null,null,null,null,null,null,null,null,null,null,null,null,null,null,null,null,null,null,null,null,null,null,null,null,null,null,null,null,null,null,null,null,"Bronze",5,4.4999999999999998E-2,7.8500000000000011E-5,573.24840764331202,68.849999999999994]
[null,null,null,null,null,null,null,null,null,null,null,null,null,null,null,null,null,null,null,null,null,null,null,null,null,null,null,null,null,null,null,null,null,null,null,null,null,null,null,null,null,null,null,null,null,null,null,null,null,null,null,null,null,null,null,null,null,null,null,null,null,null,null,null,null,null,null,null,null,null,null,null,null,null,null,null,"Forzinket jern",8,9.7000000000000003E-2,2.0096E-4,482.68312101910828,57.97265625]
[null,null,null,null,null,null,null,null,null,null,null,null,null,null,null,null,null,null,null,null,null,null,null,null,null,null,null,null,null,null,null,null,null,null,null,null,null,null,null,null,null,null,null,null,null,null,null,null,null,null,null,null,null,null,null,null,null,null,null,"Vinduer/døre/forstærkninger aktive?"]
[null,null,null,null,null,null,null,null,null,null,null,null,null,null,null,null,null,null,null,null,null,null,null,null,null,null,null,null,null,null,null,null,null,null,null,null,null,null,null,null,null,null,null,null,null,null,null,null,null,null,null,null,null,null,null,null,null,null,null,"Dør 1",{"$f":"IF(J14>0,1,\"\")","v":1},{"$f":"IF(SUM(BI110:BI112)>0,1,0)","v":1}]
[null,null,null,null,null,null,null,null,null,null,null,null,null,null,null,null,null,null,null,null,null,null,null,null,null,null,null,null,null,null,null,null,null,null,null,null,null,null,null,null,null,null,null,null,null,null,null,null,null,null,null,null,null,null,null,null,null,null,null,"Dør 2",{"$f":"IF(J15>0,1,\"\")","v":1}]
[null,null,null,null,null,null,null,null,null,null,null,null,null,null,null,null,null,null,null,null,null,null,null,null,null,null,null,null,null,null,null,null,null,null,null,null,null,null,null,null,null,null,null,null,null,null,null,null,null,null,null,null,null,null,null,null,null,null,null,"Dør 3",1]
[null,null,null,null,null,null,null,null,null,null,null,null,null,null,null,null,null,null,null,null,null,null,null,null,null,null,null,null,null,null,null,null,null,null,null,null,null,null,null,null,null,null,null,null,null,null,null,null,null,null,null,null,null,null,null,null,null,null,null,"Vindue 1",1,{"$f":"IF(SUM(BI113:BI117)>0,1,0)","v":1}]
[null,null,null,null,null,null,null,null,null,null,null,null,null,null,null,null,null,null,null,null,null,null,null,null,null,null,null,null,null,null,null,null,null,null,null,null,null,null,null,null,null,null,null,null,null,null,null,null,null,null,null,null,null,null,null,null,null,null,null,"Vindue 2",1]
[null,null,null,null,null,null,null,null,null,null,null,null,null,null,null,null,null,null,null,null,null,null,null,null,null,null,null,null,null,null,null,null,null,null,null,null,null,null,null,null,null,null,null,null,null,null,null,null,null,null,null,null,null,null,null,null,null,null,null,"Vindue 3",1]
[null,null,null,null,null,null,null,null,null,null,null,null,null,null,null,null,null,null,null,null,null,null,null,null,null,null,null,null,null,null,null,null,null,null,null,null,null,null,null,null,null,null,null,null,null,null,null,null,null,null,null,null,null,null,null,null,null,null,null,"Vindue 4",1]
[null,null,null,null,null,null,null,null,null,null,null,null,null,null,null,null,null,null,null,null,null,null,null,null,null,null,null,null,null,null,null,null,null,null,null,null,null,null,null,null,null,null,null,null,null,null,null,null,null,null,null,null,null,null,null,null,null,null,null,"Vindue 5",1]
[null,null,null,null,null,null,null,null,null,null,null,null,null,null,null,null,null,null,null,null,null,null,null,null,null,null,null,null,null,null,null,null,null,null,null,null,null,null,null,null,null,null,null,null,null,null,null,null,null,null,null,null,null,null,null,null,null,null,null,"Forstærkning 1",1,{"$f":"IF(SUM(BI118:BI120)>0,1,0)","v":1}]
[null,null,null,null,null,null,null,null,null,null,null,null,null,null,null,null,null,null,null,null,null,null,null,null,null,null,null,null,null,null,null,null,null,null,null,null,null,null,null,null,null,null,null,null,null,null,null,null,null,null,null,null,null,null,null,null,null,null,null,"Forstærkning 2",1]
[null,null,null,null,null,null,null,null,null,null,null,null,null,null,null,null,null,null,null,null,null,null,null,null,null,null,null,null,null,null,null,null,null,null,null,null,null,null,null,null,null,null,null,null,null,null,null,null,null,null,null,null,null,null,null,null,null,null,null,"Forstærkning 3",1]

{"sheet":"Materialer","index":1,"n_rows":9,"n_cols":91,"rows_kept":9,"cut":false,"hidden":false,"merged":[[2,84,2,85],[2,87,2,88],[2,90,2,91],[1,1,1,2],[1,4,1,5],[1,7,1,8],[2,78,2,79],[2,81,2,82]]}
[]
[null,"Bagstøbning",null,null,"Isolering",null,null,"Forstøbning"]
[null,"Type/Beskrivelse","λ \n(Varmeledningsevne)",null,"Type/Beskrivelse","λ \n(Varmeledningsevne)",null,"Type/Beskrivelse","λ \n(Varmeledningsevne)",null,null,null,null,null,null,null,null,null,null,null,null,null,null,null,null,null,null,null,null,null,null,null,null,null,null,null,null,null,null,null,null,null,null,null,null,null,null,null,null,null,null,null,null,null,null,null,null,null,null,null,null,null,null,null,null,null,null,null,null,null,null,null,null,null,null,null,null,null,"Konstruktion lag1",null,null,"Konstruktion lag2",null,null,"Konstruktion lag3",null,null,"Konstruktion lag4",null,null,"Konstruktion lag5"]
[null,null,"[W/mK]",null,null,"[W/mK]",null,null,"[W/mK]"]
[null,"Beton med 1% armering",2.44,null,"Rockwool Kl. 37",3.6999999999999998E-2,null,"Beton med 1% armering",2.54]
[null,"Beton med 2% armering",2.64,null,"Rockwool Kl.35",3.5000000000000003E-2,null,"Beton med 2% armering",2.76]
[null,"Beton rho=1800 kg/m³",1.2,null,"Eps",3.1E-2,null,"Beton rho=1800 kg/m³",1.3]
[null,"Beton rho=2100 kg/m³",1.55,null,"Pir",2.3E-2,null,"Beton rho=2100 kg/m³",1.65]
[null,"Beton rho=2400 kg/m³",2.1,null,"Spaceline",0.04,null,"Beton rho=2400 kg/m³",2.2000000000000002]

{"sheet":"Simpel Udskrift","index":2,"n_rows":57,"n_cols":10,"rows_kept":57,"cut":false,"hidden":false,"merged":[[1,2,1,9],[2,2,2,7],[3,2,3,7],[4,2,4,7]]}
[]
[null,{"$f":"Forside!B2","v":"Bruger:"},{"$f":"Forside!C2","v":"Betonelement foreningen"}]
[null,{"$f":"Forside!B3","v":"Sagsnavn:"},{"$f":"Forside!C3","v":"U-Værdi program"},null,null,null,null,null,{"$f":"Forside!I3","v":"Sag nr.:"},{"$f":"Forside!J3","v":"017681"}]
[null,{"$f":"Forside!B4","v":"Bygningsdel:"},{"$f":"Forside!C4","v":"Element"},null,null,null,null,null,{"$f":"Forside!I4","v":"Dato:"},{"$f":"Forside!J4","v":"01-02-2013"}]
[null,{"$f":"Forside!B5","v":"Emne:"},{"$f":"Forside!C5","v":"Excel ark til beregning af uværdier for betonsandwitchelementer"},null,null,null,null,null,{"$f":"Forside!I5","v":"Int.:"},{"$f":"Forside!J5","v":"MKTA / MRNI / MVVE"}]
[]
[]
[null,"Opstalt:"]
[]
[]
[]
[]
[]
[]
[]
[]
[]
[]
[]
[]
[]
[]
[]
[]
[]
[]
[]
[]
[]
[null,null,"Snittegning:"]
[]
[]
[]
[]
[]
[]
[]
[]
[]
[]
[]
[]
[]
[]
[]
[]
[]
[]
[]
[]
[]
[]
[]
[]
[]
[]
[null,null,null,"Endelig U-Værdi:",null,null,{"$f":"Forside!F40","v":0.1299199725556946},{"$f":"Forside!G40","v":"W/m²K"}]